Workbook

Sheet Contents
C1: Go to Charts by Pressing Shift and Enter on Menu Item
C3: Sheet Tab | D3: Description | E3: Author
B4: 1 | C4: Contents
B5: 2 | C5: Update
B6: 3 | C6: Amazon Model
B7: 4 | C7: Amazon DCF
B8: 5 | C8: Sensitivity and Presentation
B9: 6 | C9: Tornado Diagram
B11: File Name: | D11: =File_name() -> C:\Users\stormy daniels\Documents\Courses\Chapters\Chapter 1. Models and Analysis\A. Corporate Models Templates and Exercises\A. Featured Corporate Finance Models\Amazon - History from Database.xlsm
B13: Last Save Date | D13: =lastsaved() -> 
B14: Last Save By | D14: =last_save_by() -> stormy daniels
B16: Colour Codes

Sheet Update
A1: Contents | B1: Update
F3: Fiscal Year | H3: 107 | I3: 107 | K3: 2013 | L3: 2014 | M3: 2015 | N3: 2016 | O3: 2017
B4: Income Statement | F4: Income Statement
C5: Sales/Revenue | G5: Sales/Revenue | H5: 108 | I5: 108 | K5: 74450000 | L5: 88990000 | M5: 107010000 | N5: 135990000 | O5: 177870000
C6: COGS excluding D&A | G6: COGS excluding D&A | H6: 111 | I6: 111 | K6: 51380000 | L6: 58570000 | M6: 66000000 | N6: 80780000 | O6: 101000000
C7: Cash Gross Margin | G7: Cash Gross Margin | H7: Calc | K7: 23070000 | L7: 30420000 | M7: 41010000 | N7: 55210000 | O7: 76870000
C8: Research & Development | G8: Research & Development | H8: 121 | I8: 121 | K8: 6570000 | L8: 9280000 | M8: 12540000 | N8: 16090000 | O8: 22620000
C9: Other SG&A | G9: Other SG&A | H9: 122 | I9: 122 | K9: 12850000 | L9: 16650000 | M9: 20410000 | N9: 27280000 | O9: 38990000
C10: Other Operating Expense | G10: Other Operating Expense | H10: 124 | I10: 124 | K10: 0 | L10: 0 | M10: 0 | N10: 0 | O10: 0
C11: EBITDA Calculated | G11: EBITDA Calculated | K11: 3650000 | L11: 4490000 | M11: 8060000 | N11: 11840000 | O11: 15260000
C12: Unusual Expense | G12: Unusual Expense | H12: 125 | I12: 125 | K12: 0 | L12: 0 | M12: 0 | N12: -67000 | O12: -109000
C13: Depreciation | G13: Depreciation | H13: 113 | I13: 113 | K13: 2630000 | L13: 4010000.25 | M13: 5380000 | N13: 7200000 | O13: 10570000
C14: Amortization of Intangibles | G14: Amortization of Intangibles | H14: 114 | I14: 114 | K14: 168000 | L14: 181000 | M14: 270000 | N14: 287000 | O14: 366000
C15: EBIT Computed | G15: EBIT Computed | K15: 852000 | L15: 298999.75 | M15: 2410000 | N15: 4420000 | O15: 4433000
C16: Non Operating Income/Expense | G16: Non Operating Income/Expense | H16: 127 | I16: 127 | K16: -250000 | L16: -251000 | M16: -427000 | N16: -144000 | O16: 23000
C17: Non-Operating Interest Income | G17: Non-Operating Interest Income | H17: 128 | I17: 128 | K17: 38000 | L17: 39000 | M17: 50000 | N17: 100000 | O17: 202000
C18: Equity in Affiliates (Pretax) | G18: Equity in Affiliates (Pretax) | H18: 129 | I18: 129 | K18: 0 | L18: 0 | M18: 0 | N18: 0 | O18: 0
C19: Interest Expense | G19: Interest Expense | H19: 130 | I19: 130 | K19: 141000 | L19: 210000 | M19: 459000 | N19: 484000 | O19: 848000
C20: Pretax Income Computed | G20: Pretax Income Computed | K20: 499000 | L20: -123000.25 | M20: 1574000 | N20: 3892000 | O20: 3810000
C21: Income Tax | G21: Income Tax | H21: 137 | I21: 137 | K21: 161000 | L21: 167000 | M21: 950000 | N21: 1430000 | O21: 769000
C22: Equity in Affiliates | G22: Equity in Affiliates | H22: 143 | I22: 143 | K22: -71000 | L22: 37000 | M22: -22000 | N22: -96000 | O22: -4000
C23: Other After Tax Income (Expense) | G23: Other After Tax Income (Expense) | H23: 144 | I23: 144 | K23: 0 | L23: 0 | M23: 0 | N23: 0 | O23: 0
C24: Consolidated Net Income | G24: Consolidated Net Income | H24: 145 | I24: 145 | K24: 274000 | L24: -241000 | M24: 596000 | N24: 2370000 | O24: 3030000
C25: Other Reconciling Item (Income) | G25: Other Reconciling Item (Income) | K25: 7000 | L25: 12000.25 | M25: -6000 | N25: 4000 | O25: -7000
C26: Net Income Computed | G26: Net Income Computed | K26: 274000 | L26: -241000 | M26: 596000 | N26: 2370000 | O26: 3030000
C27: Minority Interest Expense | G27: Minority Interest Expense | H27: 146 | I27: 146 | K27: 0 | L27: 0 | M27: 0 | N27: 0 | O27: 0
C28: Net Income | G28: Net Income | H28: 147 | I28: 147 | K28: 274000 | L28: -241000 | M28: 596000 | N28: 2370000 | O28: 3030000
C29: Extraordinaries & Discontinued Operations | G29: Extraordinaries & Discontinued Operations | H29: 150 | I29: 150 | K29: 0 | L29: 0 | M29: 0 | N29: 0 | O29: 0
C30: Net Income After Extraordinaries | G30: Net Income After Extraordinaries | H30: 154 | I30: 154 | K30: 274000 | L30: -241000 | M30: 596000 | N30: 2370000 | O30: 3030000
C31: Preferred Dividends | G31: Preferred Dividends | H31: 155 | I31: 155 | K31: 0 | L31: 0 | M31: 0 | N31: 0 | O31: 0
C32: Net Income Available to Common | G32: Net Income Available to Common | H32: 156 | I32: 156 | K32: 274000 | L32: -241000 | M32: 596000 | N32: 2370000 | O32: 3030000
C34: EPS (Basic) | G34: EPS (Basic) | H34: 157 | I34: 157 | K34: 0.6 | L34: -0.52 | M34: 1.28 | N34: 5 | O34: 6.32
C35: Basic Shares Outstanding | G35: Basic Shares Outstanding | H35: 159 | I35: 159 | K35: 457000 | L35: 462000 | M35: 467000 | N35: 474000 | O35: 480000
C36: EPS (Diluted) | G36: EPS (Diluted) | H36: 160 | I36: 160 | K36: 0.59 | L36: -0.52 | M36: 1.25 | N36: 4.9 | O36: 6.15
C37: Diluted Shares Outstanding | G37: Diluted Shares Outstanding | H37: 162 | I37: 162 | K37: 465000 | L37: 462000 | M37: 477000 | N37: 484000 | O37: 493000
H41: Fiscal year is January-December. All values USD millions.
H42: 108 | I42: 108 | K42: 2013 | L42: 2014 | M42: 2015 | N42: 2016 | O42: 2017
C43: Net Income before Extraordinaries | G43: Net Income before Extraordinaries | H43: 109 | I43: 109 | K43: 0 | L43: 0.1952 | M43: 0.2025 | N43: 0.2708 | O43: 0.308
C44: Depreciation, Depletion & Amortization | G44: Depreciation, Depletion & Amortization | H44: 111 | I44: 111 | K44: 51380000 | L44: 58570000 | M44: 66000000 | N44: 80780000 | O44: 101000000
C45: Deferred Taxes & Investment Tax Credit | G45: Deferred Taxes & Investment Tax Credit | H45: 114 | I45: 114 | K45: 168000 | L45: 181000 | M45: 270000 | N45: 287000 | O45: 366000
C46: Other Funds | G46: Other Funds | H46: 117 | I46: 117 | K46: 0 | L46: 0.2943 | M46: 0.3476 | N46: 0.3498 | O46: 0.3816
C47: Funds from Operations | G47: Funds from Operations | K47: 51548000 | L47: 58751000.49 | M47: 66270000.55 | N47: 81067000.62 | O47: 101366000.7
C48: Extraordinaries | G48: Extraordinaries | H48: 119 | I48: 119 | K48: 2013 | L48: 2014 | M48: 2015 | N48: 2016 | O48: 2017
C49: Changes in Working Capital | G49: Changes in Working Capital | H49: 120 | I49: 120 | K49: 19410000 | L49: 25930000 | M49: 32950000 | N49: 43370000 | O49: 61610000
C50: Net Operating Cash Flow | G50: Net Operating Cash Flow | K50: 70960013 | L50: 84683014.49 | M50: 99222015.55 | N50: 124439016.6 | O50: 162978017.7
C51: Investing Activities | G51: Investing Activities
C52: Capital Expenditures (Fixed Assets) | G52: Capital Expenditures (Fixed Assets) | H52: 132 | I52: 132 | K52: 141000 | L52: 210000 | M52: 459000 | N52: 484000 | O52: 848000
C53: Capital Expenditures (Other Assets) | G53: Capital Expenditures (Other Assets) | H53: 133 | I53: 133 | K53: 0 | L53: 0 | M53: 0 | N53: 0 | O53: 0
C54: Net Assets from Acquisitions | G54: Net Assets from Acquisitions | H54: 136 | I54: 136 | K54: 0 | L54: 0 | M54: 0 | N54: 0 | O54: 0.0214
C55: Sale of Fixed Assets & Businesses | G55: Sale of Fixed Assets & Businesses | H55: 137 | I55: 137 | K55: 161000 | L55: 167000 | M55: 950000 | N55: 1430000 | O55: 769000
C57: Purchase/Sale of Investments | G57: Purchase/Sale of Investments | H57: 138 | I57: 138 | K57: 144000 | L57: 279000 | M57: 452000 | N57: 1340000 | O57: 74000
C58: Other Uses | G58: Other Uses | H58: 141 | I58: 141 | K58: -23000 | L58: -180000 | M58: -221000 | N58: -331000 | O58: 988000
C59: Other Sources | G59: Other Sources | H59: 142 | I59: 142 | K59: 0 | L59: 0 | M59: 0 | N59: 0 | O59: 789000
C60: Net Investing Cash Flow | G60: Net Investing Cash Flow | K60: 423000 | L60: 476000 | M60: 1640000 | N60: 2923000 | O60: 3468000.021
C61: Financing Activities | G61: Financing Activities
C62: Common Dividends | G62: Common Dividends | H62: 151 | I62: 151 | K62: 0 | L62: 0 | M62: 0 | N62: 0 | O62: 0
C63: Preferred Dividends | G63: Preferred Dividends | H63: 152 | I63: 152 | K63: 0 | L63: 0 | M63: 0 | N63: 0 | O63: 0
C64: Change in Capital Stock | G64: Change in Capital Stock | H64: 153 | I64: 153 | K64: 0 | L64: 0 | M64: 0 | N64: 0 | O64: 0
C65: Repurchase of Common & Preferred Stk. | G65: Repurchase of Common & Preferred Stk. | H65: 154 | I65: 154 | K65: 274000 | L65: -241000 | M65: 596000 | N65: 2370000 | O65: 3030000
C66: Sale of Common & Preferred Stock | G66: Sale of Common & Preferred Stock | H66: 155 | I66: 155 | K66: 0 | L66: 0 | M66: 0 | N66: 0 | O66: 0
C67: Issuance/Reduction of Debt, Net | G67: Issuance/Reduction of Debt, Net | H67: 158 | I67: 158 | K67: 0 | L67: -1.8667 | M67: 3.4615 | N67: 2.9079 | O67: 0.2635
C68: Change in Current Debt | G68: Change in Current Debt | H68: 159 | I68: 159 | K68: 457000 | L68: 462000 | M68: 467000 | N68: 474000 | O68: 480000
C69: Change in Long-Term Debt | G69: Change in Long-Term Debt | H69: 160 | I69: 160 | K69: 0.59 | L69: -0.52 | M69: 1.25 | N69: 4.9 | O69: 6.15
C70: Issuance of Long-Term Debt | G70: Issuance of Long-Term Debt | H70: 161 | I70: 161 | K70: 0 | L70: -1.8814 | M70: 3.4038 | N70: 2.92 | O70: 0.2551
C71: Reduction in Long-Term Debt | G71: Reduction in Long-Term Debt | H71: 162 | I71: 162 | K71: 465000 | L71: 462000 | M71: 477000 | N71: 484000 | O71: 493000
C72: Other Funds | G72: Other Funds | H72: 117 | I72: 117 | K72: 0 | L72: 0.2943 | M72: 0.3476 | N72: 0.3498 | O72: 0.3816
C73: Other Uses | G73: Other Uses | H73: 141 | I73: 141 | K73: -23000 | L73: -180000 | M73: -221000 | N73: -331000 | O73: 988000
C74: Other Sources | G74: Other Sources | H74: 142 | I74: 142 | K74: 0 | L74: 0 | M74: 0 | N74: 0 | O74: 789000
C75: Net Financing Cash Flow | G75: Net Financing Cash Flow | H75: 166 | I75: 166 | K75: 0 | L75: 0 | M75: 0 | N75: 0 | O75: 0
C77: Exchange Rate Effect | G77: Exchange Rate Effect | H77: 169 | I77: 169 | K77: 0 | L77: 0 | M77: 0 | N77: 0 | O77: 0
C78: Miscellaneous Funds | G78: Miscellaneous Funds | H78: 170 | I78: 170 | K78: 0 | L78: 0 | M78: 0 | N78: 0 | O78: 0
C79: Net Change in Cash | G79: Net Change in Cash | H79: 171 | I79: 171 | K79: 0 | L79: 0 | M79: 0 | N79: 0 | O79: 0
C80: Free Cash Flow | G80: Free Cash Flow | H80: 172 | I80: 172 | K80: 0 | L80: 0 | M80: 0 | N80: 0 | O80: 0
H84: Fiscal year is January-December. All values USD millions.
H85: 108 | I85: 108 | K85: 2013 | L85: 2014 | M85: 2015 | N85: 2016 | O85: 2017
F86: Assets
G87: Cash & Short Term Investments | H87: 109 | I87: 109 | K87: 0 | L87: 0.1952 | M87: 0.2025 | N87: 0.2708 | O87: 0.308
G88: Total Accounts Receivable | H88: 114 | I88: 114 | K88: 168000 | L88: 181000 | M88: 270000 | N88: 287000 | O88: 366000
G89: Inventories | H89: 121 | I89: 121 | K89: 6570000 | L89: 9280000 | M89: 12540000 | N89: 16090000 | O89: 22620000
G90: Progress Payments & Other | H90: 125 | I90: 125 | K90: 0 | L90: 0 | M90: 0 | N90: -67000 | O90: -109000
G91: Other Current Assets | H91: 126 | I91: 126 | K91: 0 | L91: 0 | M91: 0 | N91: 4420000 | O91: 4430000
G92: Total Current Assets | K92: 6738000 | L92: 9461000.195 | M92: 12810000.2 | N92: 20730000.27 | O92: 27307000.31
G93: Property, Plant & Equipment - Gross | H93: 131 | I93: 131 | K93: 0 | L93: 0.4894 | M93: 1.1857 | N93: 0.0545 | O93: 0.7521
G94: Accumulated Depreciation | H94: 136 | I94: 136 | K94: 0 | L94: 0 | M94: 0 | N94: 0 | O94: 0.0214
G95: Net Property, Plant & Equipment | H95: 130 | I95: 130 | K95: 141000 | L95: 210000 | M95: 459000 | N95: 484000 | O95: 848000
G96: Total Investments and Advances | H96: 137 | I96: 137 | K96: 161000 | L96: 167000 | M96: 950000 | N96: 1430000 | O96: 769000
G97: Intangible Assets | H97: 140 | I97: 140 | K97: -133000 | L97: -136000 | M97: 302000 | N97: 85000 | O97: -228000
G98: Other Assets | H98: 143 | I98: 143 | K98: -71000 | L98: 37000 | M98: -22000 | N98: -96000 | O98: -4000
G99: Total Assets | K99: 6836000 | L99: 9739000.195 | M99: 14499000.2 | N99: 22633000.27 | O99: 28692000.31
F101: Liabilities & Shareholders' Equity
G102: ST Debt & Current Portion LT Debt | H102: 151 | I102: 151 | K102: 0 | L102: 0 | M102: 0 | N102: 0 | O102: 0
G103: Accounts Payable | H103: 154 | I103: 154 | K103: 274000 | L103: -241000 | M103: 596000 | N103: 2370000 | O103: 3030000
G104: Income Tax Payable | H104: 156 | I104: 156 | K104: 274000 | L104: -241000 | M104: 596000 | N104: 2370000 | O104: 3030000
G105: Other Current Liabilities | H105: 157 | I105: 157 | K105: 0.6 | L105: -0.52 | M105: 1.28 | N105: 5 | O105: 6.32
G106: Total Current Liabilities | K106: 548000.6 | L106: -482000.52 | M106: 1192001.28 | N106: 4740005 | O106: 6060006.32
G107: Long-Term Debt | H107: 162 | I107: 162 | K107: 465000 | L107: 462000 | M107: 477000 | N107: 484000 | O107: 493000
G108: Provision for Risks & Charges | H108: 167 | I108: 167 | K108: 0 | L108: 0 | M108: 0 | N108: 0 | O108: 0
G109: Deferred Taxes | H109: 168 | I109: 168 | K109: 0 | L109: 0 | M109: 0 | N109: 0 | O109: 0
G110: Other Liabilities | H110: 171 | I110: 171 | K110: 0 | L110: 0 | M110: 0 | N110: 0 | O110: 0
G111: Reconciling Liabilities | K111: 5822999.4 | L111: 9759000.715 | M111: 12829998.92 | N111: 17408995.27 | O111: 22138993.99
G112: Total Liabilities | K112: 6836000 | L112: 9739000.195 | M112: 14499000.2 | N112: 22633000.27 | O112: 28692000.31
G113: Total Shareholders' Equity | H113: 189 | I113: 189 | K113: 0 | L113: 0 | M113: 0 | N113: 0 | O113: 0
G114: Accumulated Minority Interest | H114: 191 | I114: 191 | K114: 0 | L114: 0 | M114: 0 | N114: 0 | O114: 0
G115: Total Equity | H115: 192 | I115: 192 | K115: 0 | L115: 0 | M115: 0 | N115: 0 | O115: 0
G116: Liabilities & Shareholders' Equity | H116: 148 | I116: 148 | K116: 6836000 | L116: 9739000.195 | M116: 14499000.2 | N116: 22633000.27 | O116: 28692000.31

Sheet Amazon Model
A1: Contents | B1: Amazon Model | D1: 2 | E1: Jan Start | F1: =F2=1 -> TRUE
B2: =INDEX(INDIRECT(#REF!&"A:A"),MATCH(C10,INDIRECT(#REF!&"A:A"),0)+1) ->  | E2: First Month | F2: 1 | H2: =DATE(F3,$F$2,1) -> 2012-01-01 | I2: =H3+1 -> 2013-01-01 | J2: =I3+1 -> 2014-01-01 | K2: =J3+1 -> 2015-01-01 | L2: =K3+1 -> 2016-01-01 | M2: =L3+1 -> 2017-01-01 | N2: =M3+1 -> 2018-01-01 | O2: 2019-01-01 | P2: 2020-01-01 | Q2: 2021-01-01 | R2: 2022-01-01 | S2: 2023-01-01 | T2: 2024-01-01 | U2: 2025-01-01 | V2: 2026-01-01 | W2: 2027-01-01 | X2: 2028-01-01 | Y2: 2029-01-01 | Z2: 2030-01-01 | AA2: 2031-01-01 | AB2: 2032-01-01
B3: Last Annual Date | E3: First Year | F3: =IF(F1,H13,H13-1) -> 2012 | H3: =EOMONTH(H2,11) -> 2012-12-31 | I3: 2013-12-31 | J3: 2014-12-31 | K3: 2015-12-31 | L3: 2016-12-31 | M3: 2017-12-31 | N3: 2018-12-31 | O3: 2019-12-31 | P3: 2020-12-31 | Q3: 2021-12-31 | R3: 2022-12-31 | S3: 2023-12-31 | T3: 2024-12-31 | U3: 2025-12-31 | V3: 2026-12-31 | W3: 2027-12-31 | X3: 2028-12-31 | Y3: 2029-12-31 | Z3: 2030-12-31 | AA3: 2031-12-31 | AB3: 2032-12-31
H4: =YEAR(H3) -> 2012 | I4: =YEAR(I3) -> 2013 | J4: 2014 | K4: 2015 | L4: 2016 | M4: 2017 | N4: 2018 | O4: 2019 | P4: 2020 | Q4: 2021 | R4: 2022 | S4: 2023 | T4: 2024 | U4: 2025 | V4: 2026 | W4: 2027 | X4: 2028 | Y4: 2029 | Z4: 2030 | AA4: 2031 | AB4: 2032
C5: Histoic Year | E5: Last Year | F5: =IF(F1,L13,L13-1) -> 2016 | H5: =H3<=$F$6 -> TRUE | I5: TRUE | J5: TRUE | K5: TRUE | L5: TRUE | M5: FALSE | N5: FALSE | O5: FALSE | P5: FALSE | Q5: FALSE | R5: FALSE | S5: FALSE | T5: FALSE | U5: FALSE | V5: FALSE | W5: FALSE | X5: FALSE | Y5: FALSE | Z5: FALSE | AA5: FALSE | AB5: FALSE
C6: Partial Historic Year | F6: =DATE(F5+1,F2,1)-1 -> 2016-12-31 | H6: =YEAR(H3)=$F$7 -> FALSE | I6: FALSE | J6: FALSE | K6: FALSE | L6: FALSE | M6: TRUE | N6: FALSE | O6: FALSE | P6: FALSE | Q6: FALSE | R6: FALSE | S6: FALSE | T6: FALSE | U6: FALSE | V6: FALSE | W6: FALSE | X6: FALSE | Y6: FALSE | Z6: FALSE | AA6: FALSE | AB6: FALSE
C7: Assumption Year | E7: Annual Row | F7: =F5+1 -> 2017 | H7: =OR(H5:H6) -> TRUE | I7: TRUE | J7: TRUE | K7: TRUE | L7: TRUE | M7: TRUE | N7: FALSE | O7: FALSE | P7: FALSE | Q7: FALSE | R7: FALSE | S7: FALSE | T7: FALSE | U7: FALSE | V7: FALSE | W7: FALSE | X7: FALSE | Y7: FALSE | Z7: FALSE | AA7: FALSE | AB7: FALSE
A9: Profit and Loss
C10: View Ratios
C11: All values USD millions.
C13: Fiscal Year | H13: 2012 | I13: 2013 | J13: 2014 | K13: 2015 | L13: 2016 | M13: 2017 | N13: 2018 | O13: 2019 | P13: 2020 | Q13: 2021 | R13: 2022 | S13: 2023 | T13: 2024 | U13: 2025 | V13: 2026 | W13: 2027 | X13: 2028 | Y13: 2029 | Z13: 2030 | AA13: 2031 | AB13: 2032
C14: Income Statement
D15: Sales/Revenue | H15: 61090000 | I15: 74450000 | J15: 88990000 | K15: 107010000 | L15: 135990000
D16: COGS excluding D&A | H16: 44140000 | I16: 51380000 | J16: 58570000 | K16: 66000000 | L16: 80780000
D17: Cash Gross Margin | H17: 16950000 | I17: 23070000 | J17: 30420000 | K17: 41010000 | L17: 55210000
D18: Research & Development | H18: 4560000 | I18: 6570000 | J18: 9280000 | K18: 12540000 | L18: 16090000
D19: Other SG&A | H19: 9720000 | I19: 12850000 | J19: 16650000 | K19: 20410000 | L19: 27280000
D20: Other Operating Expense | H20: 0 | I20: 0 | J20: 0 | K20: 0 | L20: 0
D21: EBITDA Calculated | H21: 2670000 | I21: 3650000 | J21: 4490000 | K21: 8060000 | L21: 11840000
D22: Unusual Expense | H22: 0 | I22: 0 | J22: 0 | K22: 0 | L22: -67000
D23: Depreciation | H23: 1670000 | I23: 2630000 | J23: 4010000.25 | K23: 5380000 | L23: 7200000
D24: Amortization of Intangibles | H24: 163000 | I24: 168000 | J24: 181000 | K24: 270000 | L24: 287000
D25: EBIT Computed | H25: 837000 | I25: 852000 | J25: 298999.75 | K25: 2410000 | L25: 4420000
D26: Non Operating Income/Expense | H26: -239000 | I26: -250000 | J26: -251000 | K26: -427000 | L26: -144000
D27: Non-Operating Interest Income | H27: 40000 | I27: 38000 | J27: 39000 | K27: 50000 | L27: 100000
D28: Equity in Affiliates (Pretax) | H28: 0 | I28: 0 | J28: 0 | K28: 0 | L28: 0
D29: Interest Expense | H29: 92000 | I29: 141000 | J29: 210000 | K29: 459000 | L29: 484000
D30: Pretax Income Computed | H30: 546000 | I30: 499000 | J30: -123000.25 | K30: 1574000 | L30: 3892000
D31: Income Tax | H31: 428000 | I31: 161000 | J31: 167000 | K31: 950000 | L31: 1430000
D32: Equity in Affiliates | H32: -155000 | I32: -71000 | J32: 37000 | K32: -22000 | L32: -96000
D33: Other After Tax Income (Expense) | H33: 0 | I33: 0 | J33: 0 | K33: 0 | L33: 0
D34: Consolidated Net Income | H34: -39000 | I34: 274000 | J34: -241000 | K34: 596000 | L34: 2370000
D35: Other Reconciling Item (Income) | H35: -2000 | I35: 7000 | J35: 12000.25 | K35: -6000 | L35: 4000
D36: Net Income Computed | H36: -39000 | I36: 274000 | J36: -241000 | K36: 596000 | L36: 2370000
D37: Minority Interest Expense | H37: 0 | I37: 0 | J37: 0 | K37: 0 | L37: 0
D38: Net Income | H38: -39000 | I38: 274000 | J38: -241000 | K38: 596000 | L38: 2370000
D39: Extraordinaries & Discontinued Operations | H39: 0 | I39: 0 | J39: 0 | K39: 0 | L39: 0
D40: Net Income After Extraordinaries | H40: -39000 | I40: 274000 | J40: -241000 | K40: 596000 | L40: 2370000
D41: Preferred Dividends | H41: 0 | I41: 0 | J41: 0 | K41: 0 | L41: 0
D42: Net Income Available to Common | H42: -39000 | I42: 274000 | J42: -241000 | K42: 596000 | L42: 2370000
D44: EPS (Basic) | H44: -0.09 | I44: 0.6 | J44: -0.52 | K44: 1.28 | L44: 5
D45: Basic Shares Outstanding | H45: 453000 | I45: 457000 | J45: 462000 | K45: 467000 | L45: 474000
D46: EPS (Diluted) | H46: -0.09 | I46: 0.59 | J46: -0.52 | K46: 1.25 | L46: 4.9
D47: Diluted Shares Outstanding | H47: 453000 | I47: 465000 | J47: 462000 | K47: 477000 | L47: 484000
A49: Cash Flow
B50: View Ratios
B51: All values USD millions.
B52: Fiscal Year | H52: =H13 -> 2012 | I52: =I13 -> 2013 | J52: 2014 | K52: 2015 | L52: 2016
D53: Net Income before Extraordinaries | H53: -39000 | I53: 274000 | J53: -241000 | K53: 596000 | L53: 2370000
D54: Depreciation, Depletion & Amortization | H54: 1830000 | I54: 2800000 | J54: 4190000 | K54: 5650000 | L54: 7480000
D55: Deferred Taxes & Investment Tax Credit | H55: -265000 | I55: -156000 | J55: -316000 | K55: 81000 | L55: -246000
D56: Other Funds | H56: 1130000 | I56: 1790000 | J56: 2240000 | K56: 3040000 | L56: 2920000
D57: Funds from Operations | H57: 2656000 | I57: 4708000 | J57: 5873000 | K57: 9367000 | L57: 12524000
D58: Extraordinaries | H58: 0 | I58: 0 | J58: 0 | K58: 0 | L58: 0
D59: Changes in Working Capital | H59: 1520000 | I59: 767000 | J59: 974000 | K59: 2560000 | L59: 3920000
D60: Net Operating Cash Flow | H60: 4176000 | I60: 5475000 | J60: 6847000 | K60: 11927000 | L60: 16444000
D61: Investing Activities
D62: Capital Expenditures (Fixed Assets) | H62: -3790000 | I62: -3440000 | J62: -4890000 | K62: -4590000 | L62: -6740000
D63: Capital Expenditures (Other Assets) | H63: 0 | I63: 0 | J63: 0 | K63: 0 | L63: 0
D64: Net Assets from Acquisitions | H64: -745000 | I64: -312000 | J64: -979000 | K64: -795000 | L64: -116000
D65: Sale of Fixed Assets & Businesses | H65: 0 | I65: 0 | J65: 0 | K65: 0 | L65: 0
D67: Purchase/Sale of Investments | H67: 935000 | I67: -520000 | J67: 807000 | K67: -1070000 | L67: -3020000
D68: Other Uses | H68: 0 | I68: 0 | J68: 0 | K68: 0 | L68: 0
D69: Other Sources | H69: 0 | I69: 0 | J69: 0 | K69: 0 | L69: 0
D70: Net Investing Cash Flow | H70: -3600000 | I70: -4272000 | J70: -5062000 | K70: -6455000 | L70: -9876000
D71: Financing Activities
D72: Common Dividends | H72: 0 | I72: 0 | J72: 0 | K72: 0 | L72: 0
D73: Preferred Dividends | H73: 0 | I73: 0 | J73: 0 | K73: 0 | L73: 0
D74: Change in Capital Stock | H74: -960000 | I74: 0 | J74: 0 | K74: 0 | L74: 0
D75: Repurchase of Common & Preferred Stk. | H75: -960000 | I75: 0 | J75: 0 | K75: 0 | L75: 0
D76: Sale of Common & Preferred Stock | H76: 0 | I76: 0 | J76: 0 | K76: 0 | L76: 0
D77: Issuance/Reduction of Debt, Net | H77: 2790000 | I77: -617000 | J77: 4430000 | K77: -3880000 | L77: -3740000
D78: Change in Current Debt | H78: 0 | I78: 0 | J78: 0 | K78: 0 | L78: 0
D79: Change in Long-Term Debt | H79: 2790000 | I79: -617000 | J79: 4430000 | K79: -3880000 | L79: -3740000
D80: Issuance of Long-Term Debt | H80: 3380000 | I80: 394000 | J80: 6360000 | K80: 353000 | L80: 621000
D81: Reduction in Long-Term Debt | H81: -588000 | I81: -1010000 | J81: -1930000 | K81: -4240000 | L81: -4360000
D82: Other Funds | H82: 1130000 | I82: 1790000 | J82: 2240000 | K82: 3040000 | L82: 2920000
D83: Other Uses | H83: 0 | I83: 0 | J83: 0 | K83: 0 | L83: 0
D84: Other Sources | H84: 0 | I84: 0 | J84: 0 | K84: 0 | L84: 0
D85: Net Financing Cash Flow | H85: 2260000 | I85: -539000 | J85: 4430000 | K85: -3760000 | L85: -2910000
D87: Exchange Rate Effect | H87: -29000 | I87: -86000 | J87: -310000 | K87: -374000 | L87: -212000
D88: Miscellaneous Funds | H88: 0 | I88: 0 | J88: 0 | K88: 0 | L88: 0
D89: Net Change in Cash | H89: 2820000 | I89: 574000 | J89: 5900000 | K89: 1330000 | L89: 3440000
D90: Free Cash Flow | H90: 395000 | I90: 2030000 | J90: 1950000 | K90: 7330000 | L90: 9710000
A92: Balance Sheet
B93: View Ratios
B94: All values USD millions.
B95: Fiscal Year | H95: =H13 -> 2012 | I95: =I13 -> 2013 | J95: 2014 | K95: 2015 | L95: 2016 | M95: 2017
C96: Assets
D97: Cash & Short Term Investments | H97: 11450000 | I97: 12450000 | J97: 17420000 | K97: 19810000 | L97: 25980000
D98: Total Accounts Receivable | H98: 3360000 | I98: 4770000 | J98: 5610000 | K98: 5650000 | L98: 8340000
D99: Inventories | H99: 6030000 | I99: 7410000 | J99: 8300000 | K99: 10240000 | L99: 11460000
D100: Progress Payments & Other | H100: 0 | I100: 0 | J100: 0 | K100: 0 | L100: 0
D101: Other Current Assets | H101: 453000 | I101: 0 | J101: 0 | K101: 0 | L101: 0
D102: Total Current Assets | H102: 21293000 | I102: 24630000 | J102: 31330000 | K102: 35700000 | L102: 45780000
D103: Property, Plant & Equipment - Gross | H103: 9580000 | I103: 14810000 | J103: 22730000 | K103: 30050000 | L103: 42440000
D104: Accumulated Depreciation | H104: 2520000 | I104: 3860000 | J104: 5760000 | K104: 8220000.5 | L104: 13330000
D105: Net Property, Plant & Equipment | H105: 7060000 | I105: 10950000 | J105: 16970000 | K105: 21840000 | L105: 29110000
D106: Total Investments and Advances | H106: 151000 | I106: 520000 | J106: 886000 | K106: 418000 | L106: 715000
D107: Intangible Assets | H107: 3280000 | I107: 3300000 | J107: 4080000 | K107: 4750000 | L107: 4640000
D108: Other Assets | H108: 648000 | I108: 538000 | J108: 971000 | K108: 1950000 | L108: 2700000
D109: Total Assets | H109: 32432000 | I109: 39938000 | J109: 54237000 | K109: 64658000 | L109: 82945000
C111: Liabilities & Shareholders' Equity
D112: ST Debt & Current Portion LT Debt | H112: 1140000 | I112: 1740000 | J112: 3600000 | K112: 3340000 | L112: 5200000
D113: Accounts Payable | H113: 13320000 | I113: 15130000 | J113: 16459999 | K113: 20400000 | L113: 25310000
D114: Income Tax Payable | H114: 0 | I114: 0 | J114: 0 | K114: 0 | L114: 0
D115: Other Current Liabilities | H115: 4550000 | I115: 6110000 | J115: 8029999.5 | K115: 10150000 | L115: 13310000
D116: Total Current Liabilities | H116: 19010000 | I116: 22980000 | J116: 28089998.5 | K116: 33890000 | L116: 43820000
D117: Long-Term Debt | H117: 3830000 | I117: 5180000 | J117: 12490000 | K117: 14180000 | L117: 15210000
D118: Provision for Risks & Charges | H118: 336000 | I118: 457000 | J118: 510000 | K118: 932000 | L118: 1400000
D119: Deferred Taxes | H119: -123000 | I119: 344000 | J119: 750000 | K119: 325000 | L119: -62000
D120: Other Liabilities | H120: 1200000 | I120: 1220000 | J120: 1660000 | K120: 1960000 | L120: 3300000
D121: Reconciling Liabilities | H121: -10999.5 | I121: 7000 | J121: -2998.5 | K121: -9000 | L121: -13000
D122: Total Liabilities | H122: 24242000.5 | I122: 30188000 | J122: 43497000 | K122: 51278000 | L122: 63655000
D123: Total Shareholders' Equity | H123: 8189999.5 | I123: 9750000 | J123: 10740000 | K123: 13380000 | L123: 19290000
D124: Accumulated Minority Interest | H124: 0 | I124: 0 | J124: 0 | K124: 0 | L124: 0
D125: Total Equity | H125: 8189999.5 | I125: 9750000 | J125: 10740000 | K125: 13380000 | L125: 19290000
D126: Liabilities & Shareholders' Equity | H126: 32432000 | I126: 39938000 | J126: 54237000 | K126: 64658000 | L126: 82945000
H127: 0 | I127: 0 | J127: 0 | K127: 0 | L127: 0
A128: Other Data
B129: Ending Stock Price | H129: 250.869995 | I129: 398.790009 | J129: 310.350006 | K129: 675.890015 | L129: 768.659973 | M129: 1169.469971
B130: Average Stock Price | H130: 226.7916678 | I130: 304.0200017 | J130: 327.2950007 | K130: 493.2841747 | L130: 708.7908326 | M130: 985.3249918
B132: Revenue Forecast | G132: 228710000
B133: Revenue Growth | G133: 0.2903244006
B134: Five Year Revenue Growth | G134: 0.2037
B135: Enterprise Value | G135: 642900032
B136: Current Stock Price | G136: 1294.5
E139: ='Amazon DCF'!E72 -> 1638.193549
B140: Year | I140: ='Amazon Model'!H13 -> 2012 | J140: ='Amazon Model'!I13 -> 2013 | K140: ='Amazon Model'!J13 -> 2014 | L140: ='Amazon Model'!K13 -> 2015 | M140: ='Amazon Model'!L13 -> 2016 | N140: ='Amazon Model'!M13 -> 2017 | O140: =N140+1 -> 2018 | P140: 2019 | Q140: 2020 | R140: 2021 | S140: 2022 | T140: 2023 | U140: 2024 | V140: 2025 | W140: 2026 | X140: 2027 | Y140: 2028 | Z140: 2029 | AA140: 2030 | AB140: 2031 | AC140: 2032
B141: History with Current Year | E141: 2016 | I141: =I140<=$E$141 -> TRUE | J141: TRUE | K141: TRUE | L141: TRUE | M141: TRUE | N141: FALSE | O141: FALSE | P141: FALSE | Q141: FALSE | R141: FALSE | S141: FALSE | T141: FALSE | U141: FALSE | V141: FALSE | W141: FALSE | X141: FALSE | Y141: FALSE | Z141: FALSE | AA141: FALSE | AB141: FALSE | AC141: FALSE
B142: History without Current Year | E142: ='Amazon Model'!F5 -> 2016 | I142: =I140<=$E$142 -> TRUE | J142: TRUE | K142: TRUE | L142: TRUE | M142: TRUE | N142: FALSE | O142: FALSE | P142: FALSE | Q142: FALSE | R142: FALSE | S142: FALSE | T142: FALSE | U142: FALSE | V142: FALSE | W142: FALSE | X142: FALSE | Y142: FALSE | Z142: FALSE | AA142: FALSE | AB142: FALSE | AC142: FALSE
A145: Analysis | E145: Time Series | F145: Code
B146: Operations and EBITDA
C147: Revenue Growth | E147: TRUE | F147: ='Sensitivity and Presentation'!$E$32 -> 1 | G147: =INDEX(C203:C206,F147) -> Base Case | J147: =IF(J141,'Amazon Model'!I15/'Amazon Model'!H15-1,'Amazon Model'!J208) -> 0.2186937306 | K147: =IF(K141,'Amazon Model'!J15/'Amazon Model'!I15-1,'Amazon Model'!K208) -> 0.1952988583 | L147: =IF(L141,'Amazon Model'!K15/'Amazon Model'!J15-1,'Amazon Model'!L208) -> 0.2024946623 | M147: =IF(M141,'Amazon Model'!L15/'Amazon Model'!K15-1,'Amazon Model'!M208) -> 0.2708158116 | N147: =IF(N141,'Amazon Model'!M15/'Amazon Model'!L15-1,'Amazon Model'!N208) -> 0.29 | O147: =IF(O141,'Amazon Model'!N15/'Amazon Model'!M15-1,'Amazon Model'!O208) -> 0.29 | P147: =IF(P141,'Amazon Model'!O15/'Amazon Model'!N15-1,'Amazon Model'!P208) -> 0.2 | Q147: =IF(Q141,'Amazon Model'!P15/'Amazon Model'!O15-1,'Amazon Model'!Q208) -> 0.1861209718 | R147: =IF(R141,'Amazon Model'!Q15/'Amazon Model'!P15-1,'Amazon Model'!R208) -> 0.1732050808 | S147: =IF(S141,'Amazon Model'!R15/'Amazon Model'!Q15-1,'Amazon Model'!S208) -> 0.1611854898 | T147: =IF(T141,'Amazon Model'!S15/'Amazon Model'!R15-1,'Amazon Model'!T208) -> 0.15 | U147: =IF(U141,'Amazon Model'!T15/'Amazon Model'!S15-1,'Amazon Model'!U208) -> 0.1139753528 | V147: =IF(V141,'Amazon Model'!U15/'Amazon Model'!T15-1,'Amazon Model'!V208) -> 0.08660254038 | W147: =IF(W141,'Amazon Model'!V15/'Amazon Model'!U15-1,'Amazon Model'!W208) -> 0.06580370065 | X147: =IF(X141,'Amazon Model'!W15/'Amazon Model'!V15-1,'Amazon Model'!X208) -> 0.05 | Y147: =IF(Y141,'Amazon Model'!X15/'Amazon Model'!W15-1,'Amazon Model'!Y208) -> 0.05 | Z147: =IF(Z141,'Amazon Model'!Y15/'Amazon Model'!X15-1,'Amazon Model'!Z208) -> 0.05 | AA147: =IF(AA141,'Amazon Model'!Z15/'Amazon Model'!Y15-1,'Amazon Model'!AA208) -> 0.05 | AB147: =IF(AB141,'Amazon Model'!AA15/'Amazon Model'!Z15-1,'Amazon Model'!AB208) -> 0.05 | AC147: =IF(AC141,'Amazon Model'!AB15/'Amazon Model'!AA15-1,'Amazon Model'!AC208) -> 0.05
C148: COGS Percent | E148: TRUE | F148: ='Sensitivity and Presentation'!G32 -> 1 | I148: =IF(I141,'Amazon Model'!H16/'Amazon Model'!H15,I216) -> 0.722540514 | J148: =IF(J141,'Amazon Model'!I16/'Amazon Model'!I15,J216) -> 0.6901276024 | K148: =IF(K141,'Amazon Model'!J16/'Amazon Model'!J15,K216) -> 0.6581638386 | L148: =IF(L141,'Amazon Model'!K16/'Amazon Model'!K15,L216) -> 0.6167647883 | M148: =IF(M141,'Amazon Model'!L16/'Amazon Model'!L15,M216) -> 0.5940142658 | N148: =IF(N141,'Amazon Model'!M16/'Amazon Model'!M15,N216) -> 0.57 | O148: =IF(O141,'Amazon Model'!N16/'Amazon Model'!N15,O216) -> 0.61 | P148: =IF(P141,'Amazon Model'!O16/'Amazon Model'!O15,P216) -> 0.6023575728 | Q148: =IF(Q141,'Amazon Model'!P16/'Amazon Model'!P15,Q216) -> 0.5948108943 | R148: =IF(R141,'Amazon Model'!Q16/'Amazon Model'!Q15,R216) -> 0.5873587649 | S148: =IF(S141,'Amazon Model'!R16/'Amazon Model'!R15,S216) -> 0.58 | T148: =IF(T141,'Amazon Model'!S16/'Amazon Model'!S15,T216) -> 0.58 | U148: =IF(U141,'Amazon Model'!T16/'Amazon Model'!T15,U216) -> 0.58 | V148: =IF(V141,'Amazon Model'!U16/'Amazon Model'!U15,V216) -> 0.58 | W148: =IF(W141,'Amazon Model'!V16/'Amazon Model'!V15,W216) -> 0.58 | X148: =IF(X141,'Amazon Model'!W16/'Amazon Model'!W15,X216) -> 0.58 | Y148: =IF(Y141,'Amazon Model'!X16/'Amazon Model'!X15,Y216) -> 0.58 | Z148: =IF(Z141,'Amazon Model'!Y16/'Amazon Model'!Y15,Z216) -> 0.58 | AA148: =IF(AA141,'Amazon Model'!Z16/'Amazon Model'!Z15,AA216) -> 0.58 | AB148: =IF(AB141,'Amazon Model'!AA16/'Amazon Model'!AA15,AB216) -> 0.58 | AC148: =IF(AC141,'Amazon Model'!AB16/'Amazon Model'!AB15,AC216) -> 0.58
C149: R&D as % of Margin | E149: TRUE | F149: ='Sensitivity and Presentation'!I32 -> 1 | I149: =IF(I142,'Amazon Model'!H18/'Amazon Model'!H15,I224) -> 0.07464396792 | J149: =IF(J142,'Amazon Model'!I18/'Amazon Model'!I15,J224) -> 0.08824714574 | K149: =IF(K142,'Amazon Model'!J18/'Amazon Model'!J15,K224) -> 0.1042813799 | L149: =IF(L142,'Amazon Model'!K18/'Amazon Model'!K15,L224) -> 0.1171853098 | M149: =IF(M142,'Amazon Model'!L18/'Amazon Model'!L15,M224) -> 0.1183175233 | N149: =IF(N142,'Amazon Model'!M18/'Amazon Model'!M15,N224) -> 0.11 | O149: =IF(O142,'Amazon Model'!N18/'Amazon Model'!N15,O224) -> 0.1 | P149: =IF(P142,'Amazon Model'!O18/'Amazon Model'!O15,P224) -> 0.1 | Q149: =IF(Q142,'Amazon Model'!P18/'Amazon Model'!P15,Q224) -> 0.1 | R149: =IF(R142,'Amazon Model'!Q18/'Amazon Model'!Q15,R224) -> 0.1 | S149: =IF(S142,'Amazon Model'!R18/'Amazon Model'!R15,S224) -> 0.09 | T149: =IF(T142,'Amazon Model'!S18/'Amazon Model'!S15,T224) -> 0.09 | U149: =IF(U142,'Amazon Model'!T18/'Amazon Model'!T15,U224) -> 0.09 | V149: =IF(V142,'Amazon Model'!U18/'Amazon Model'!U15,V224) -> 0.09 | W149: =IF(W142,'Amazon Model'!V18/'Amazon Model'!V15,W224) -> 0.08 | X149: =IF(X142,'Amazon Model'!W18/'Amazon Model'!W15,X224) -> 0.08 | Y149: =IF(Y142,'Amazon Model'!X18/'Amazon Model'!X15,Y224) -> 0.08 | Z149: =IF(Z142,'Amazon Model'!Y18/'Amazon Model'!Y15,Z224) -> 0.08 | AA149: =IF(AA142,'Amazon Model'!Z18/'Amazon Model'!Z15,AA224) -> 0.08 | AB149: =IF(AB142,'Amazon Model'!AA18/'Amazon Model'!AA15,AB224) -> 0.08 | AC149: =IF(AC142,'Amazon Model'!AB18/'Amazon Model'!AB15,AC224) -> 0.08
C150: Other SG&A as Percent of Revenue | E150: TRUE | F150: ='Sensitivity and Presentation'!K32 -> 1 | I150: =IF(I142,'Amazon Model'!H19/'Amazon Model'!H15,I232) -> 0.1591095106 | J150: =IF(J142,'Amazon Model'!I19/'Amazon Model'!I15,J232) -> 0.1725990598 | K150: =IF(K142,'Amazon Model'!J19/'Amazon Model'!J15,K232) -> 0.1870996741 | L150: =IF(L142,'Amazon Model'!K19/'Amazon Model'!K15,L232) -> 0.1907298383 | M150: =IF(M142,'Amazon Model'!L19/'Amazon Model'!L15,M232) -> 0.2006029855 | N150: =IF(N142,'Amazon Model'!M19/'Amazon Model'!M15,N232) -> 0.2147 | O150: =IF(O142,'Amazon Model'!N19/'Amazon Model'!N15,O232) -> 0.2 | P150: =IF(P142,'Amazon Model'!O19/'Amazon Model'!O15,P232) -> 0.2 | Q150: =IF(Q142,'Amazon Model'!P19/'Amazon Model'!P15,Q232) -> 0.2 | R150: =IF(R142,'Amazon Model'!Q19/'Amazon Model'!Q15,R232) -> 0.2 | S150: =IF(S142,'Amazon Model'!R19/'Amazon Model'!R15,S232) -> 0.2 | T150: =IF(T142,'Amazon Model'!S19/'Amazon Model'!S15,T232) -> 0.2 | U150: =IF(U142,'Amazon Model'!T19/'Amazon Model'!T15,U232) -> 0.2 | V150: =IF(V142,'Amazon Model'!U19/'Amazon Model'!U15,V232) -> 0.2 | W150: =IF(W142,'Amazon Model'!V19/'Amazon Model'!V15,W232) -> 0.2 | X150: =IF(X142,'Amazon Model'!W19/'Amazon Model'!W15,X232) -> 0.2 | Y150: =IF(Y142,'Amazon Model'!X19/'Amazon Model'!X15,Y232) -> 0.2 | Z150: =IF(Z142,'Amazon Model'!Y19/'Amazon Model'!Y15,Z232) -> 0.2 | AA150: =IF(AA142,'Amazon Model'!Z19/'Amazon Model'!Z15,AA232) -> 0.2 | AB150: =IF(AB142,'Amazon Model'!AA19/'Amazon Model'!AA15,AB232) -> 0.2 | AC150: =IF(AC142,'Amazon Model'!AB19/'Amazon Model'!AB15,AC232) -> 0.2
C151: Other Operating Expense | I151: ='Amazon Model'!H20 -> 0 | J151: ='Amazon Model'!I20 -> 0 | K151: ='Amazon Model'!J20 -> 0 | L151: ='Amazon Model'!K20 -> 0 | M151: ='Amazon Model'!L20 -> 0 | N151: ='Amazon Model'!M20 -> 0
B153: Capital Expenditures
C154: Capital Expenditures (Fixed Assets) | I154: =-'Amazon Model'!H62 -> 3790000 | J154: =-'Amazon Model'!I62 -> 3440000 | K154: =-'Amazon Model'!J62 -> 4890000 | L154: =-'Amazon Model'!K62 -> 4590000 | M154: =-'Amazon Model'!L62 -> 6740000 | N154: =-'Amazon Model'!M62 -> 0
C155: Capital Expenditures/Sales | E155: TRUE | F155: ='Sensitivity and Presentation'!M32 -> 1 | I155: =IF(I142,I154/'Amazon Model'!H15,'Amazon Model'!I240) -> 0.06203961368 | J155: =IF(J142,J154/'Amazon Model'!I15,'Amazon Model'!J240) -> 0.04620550705 | K155: =IF(K142,K154/'Amazon Model'!J15,'Amazon Model'!K240) -> 0.05494999438 | L155: =IF(L142,L154/'Amazon Model'!K15,'Amazon Model'!L240) -> 0.04289318755 | M155: =IF(M142,M154/'Amazon Model'!L15,'Amazon Model'!M240) -> 0.04956246783 | N155: =IF(N142,N154/'Amazon Model'!M15,'Amazon Model'!N240) -> 0.05 | O155: =IF(O142,O154/'Amazon Model'!N15,'Amazon Model'!O240) -> 0.06 | P155: =IF(P142,P154/'Amazon Model'!O15,'Amazon Model'!P240) -> 0.06 | Q155: =IF(Q142,Q154/'Amazon Model'!P15,'Amazon Model'!Q240) -> 0.06 | R155: =IF(R142,R154/'Amazon Model'!Q15,'Amazon Model'!R240) -> 0.06 | S155: =IF(S142,S154/'Amazon Model'!R15,'Amazon Model'!S240) -> 0.08 | T155: =IF(T142,T154/'Amazon Model'!S15,'Amazon Model'!T240) -> 0.08 | U155: =IF(U142,U154/'Amazon Model'!T15,'Amazon Model'!U240) -> 0.08 | V155: =IF(V142,V154/'Amazon Model'!U15,'Amazon Model'!V240) -> 0.08 | W155: =IF(W142,W154/'Amazon Model'!V15,'Amazon Model'!W240) -> 0.07 | X155: =IF(X142,X154/'Amazon Model'!W15,'Amazon Model'!X240) -> 0.07 | Y155: =IF(Y142,Y154/'Amazon Model'!X15,'Amazon Model'!Y240) -> 0.07 | Z155: =IF(Z142,Z154/'Amazon Model'!Y15,'Amazon Model'!Z240) -> 0.07 | AA155: =IF(AA142,AA154/'Amazon Model'!Z15,'Amazon Model'!AA240) -> 0.07 | AB155: =IF(AB142,AB154/'Amazon Model'!AA15,'Amazon Model'!AB240) -> 0.07 | AC155: =IF(AC142,AC154/'Amazon Model'!AB15,'Amazon Model'!AC240) -> 0.07
C156: Capital Expenditures/Depreciation | I156: =IF('Amazon Model'!H5,I154/'Amazon Model'!H23) -> 2.269461078 | J156: =IF('Amazon Model'!I5,J154/'Amazon Model'!I23) -> 1.307984791 | K156: =IF('Amazon Model'!J5,K154/'Amazon Model'!J23) -> 1.219451296 | L156: =IF('Amazon Model'!K5,L154/'Amazon Model'!K23) -> 0.8531598513 | M156: =IF('Amazon Model'!L5,M154/'Amazon Model'!L23) -> 0.9361111111 | N156: =IF('Amazon Model'!M5,N154/'Amazon Model'!M23) -> FALSE
C157: Capital Expenditures (Other Assets) | I157: =-'Amazon Model'!H63 -> 0 | J157: =-'Amazon Model'!I63 -> 0 | K157: =-'Amazon Model'!J63 -> 0 | L157: =-'Amazon Model'!K63 -> 0 | M157: =-'Amazon Model'!L63 -> 0 | N157: =-'Amazon Model'!M63 -> 0
C158: Net Assets from Acquisitions | I158: =-'Amazon Model'!H64 -> 745000 | J158: =-'Amazon Model'!I64 -> 312000 | K158: =-'Amazon Model'!J64 -> 979000 | L158: =-'Amazon Model'!K64 -> 795000 | M158: =-'Amazon Model'!L64 -> 116000 | N158: =-'Amazon Model'!M64 -> 0
C159: Acquisitions as Percent of Sales | E159: FALSE | F159: =AVERAGEIF($142:$142,TRUE,159:159) -> 0.00713386124 | G159: =LOOKUP($E$142,$140:$140,159:159) -> 0.0008530038973 | H159: 0.008 | I159: =IF(I142,I158/'Amazon Model'!H15,$H$159) -> 0.01219512195 | J159: =IF(J142,J158/'Amazon Model'!I15,$H$159) -> 0.004190732035 | K159: =IF(K142,K158/'Amazon Model'!J15,$H$159) -> 0.01100123609 | L159: =IF(L142,L158/'Amazon Model'!K15,$H$159) -> 0.007429212223 | M159: =IF(M142,M158/'Amazon Model'!L15,$H$159) -> 0.0008530038973 | N159: =IF(N142,N158/'Amazon Model'!M15,$H$159) -> 0.008 | O159: =IF(O142,O158/'Amazon Model'!N15,$H$159) -> 0.008 | P159: =IF(P142,P158/'Amazon Model'!O15,$H$159) -> 0.008 | Q159: =IF(Q142,Q158/'Amazon Model'!P15,$H$159) -> 0.008 | R159: =IF(R142,R158/'Amazon Model'!Q15,$H$159) -> 0.008 | S159: =IF(S142,S158/'Amazon Model'!R15,$H$159) -> 0.008 | T159: =IF(T142,T158/'Amazon Model'!S15,$H$159) -> 0.008 | U159: =IF(U142,U158/'Amazon Model'!T15,$H$159) -> 0.008 | V159: =IF(V142,V158/'Amazon Model'!U15,$H$159) -> 0.008 | W159: =IF(W142,W158/'Amazon Model'!V15,$H$159) -> 0.008 | X159: =IF(X142,X158/'Amazon Model'!W15,$H$159) -> 0.008 | Y159: =IF(Y142,Y158/'Amazon Model'!X15,$H$159) -> 0.008 | Z159: =IF(Z142,Z158/'Amazon Model'!Y15,$H$159) -> 0.008 | AA159: =IF(AA142,AA158/'Amazon Model'!Z15,$H$159) -> 0.008 | AB159: =IF(AB142,AB158/'Amazon Model'!AA15,$H$159) -> 0.008 | AC159: =IF(AC142,AC158/'Amazon Model'!AB15,$H$159) -> 0.008
B161: Working Capital
C162: Total Expenses | F162: Average | G162: Last | I162: ='Amazon Model'!H15-'Amazon Model'!H21 -> 58420000 | J162: ='Amazon Model'!I15-'Amazon Model'!I21 -> 70800000 | K162: ='Amazon Model'!J15-'Amazon Model'!J21 -> 84500000 | L162: ='Amazon Model'!K15-'Amazon Model'!K21 -> 98950000 | M162: ='Amazon Model'!L15-'Amazon Model'!L21 -> 124150000 | N162: ='Amazon Model'!M15-'Amazon Model'!M21 -> 0
C163: A/R as Percent of Sales | E163: FALSE | F163: =AVERAGEIF(142:142,TRUE,163:163) -> 0.05924765956 | G163: =AVERAGEIF(140:140,E142,163:163) -> 0.06132803883 | H163: 0.05 | I163: =IF(I142,'Amazon Model'!H98/'Amazon Model'!H15,$H$163) -> 0.05500081846 | J163: =IF(J142,'Amazon Model'!I98/'Amazon Model'!I15,$H$163) -> 0.06406984553 | K163: =IF(K142,'Amazon Model'!J98/'Amazon Model'!J15,$H$163) -> 0.0630407911 | L163: =IF(L142,'Amazon Model'!K98/'Amazon Model'!K15,$H$163) -> 0.05279880385 | M163: =IF(M142,'Amazon Model'!L98/'Amazon Model'!L15,$H$163) -> 0.06132803883 | N163: =IF(N142,'Amazon Model'!M98/'Amazon Model'!M15,$H$163) -> 0.05 | O163: =IF(O142,'Amazon Model'!N98/'Amazon Model'!N15,$H$163) -> 0.05 | P163: =IF(P142,'Amazon Model'!O98/'Amazon Model'!O15,$H$163) -> 0.05 | Q163: =IF(Q142,'Amazon Model'!P98/'Amazon Model'!P15,$H$163) -> 0.05 | R163: =IF(R142,'Amazon Model'!Q98/'Amazon Model'!Q15,$H$163) -> 0.05 | S163: =IF(S142,'Amazon Model'!R98/'Amazon Model'!R15,$H$163) -> 0.05 | T163: =IF(T142,'Amazon Model'!S98/'Amazon Model'!S15,$H$163) -> 0.05 | U163: =IF(U142,'Amazon Model'!T98/'Amazon Model'!T15,$H$163) -> 0.05 | V163: =IF(V142,'Amazon Model'!U98/'Amazon Model'!U15,$H$163) -> 0.05 | W163: =IF(W142,'Amazon Model'!V98/'Amazon Model'!V15,$H$163) -> 0.05 | X163: =IF(X142,'Amazon Model'!W98/'Amazon Model'!W15,$H$163) -> 0.05 | Y163: =IF(Y142,'Amazon Model'!X98/'Amazon Model'!X15,$H$163) -> 0.05 | Z163: =IF(Z142,'Amazon Model'!Y98/'Amazon Model'!Y15,$H$163) -> 0.05 | AA163: =IF(AA142,'Amazon Model'!Z98/'Amazon Model'!Z15,$H$163) -> 0.05 | AB163: =IF(AB142,'Amazon Model'!AA98/'Amazon Model'!AA15,$H$163) -> 0.05 | AC163: =IF(AC142,'Amazon Model'!AB98/'Amazon Model'!AB15,$H$163) -> 0.05
C164: Inventory as Percent of COGS | E164: FALSE | F164: =AVERAGEIF($142:$142,TRUE,164:164) -> 0.1439118824 | G164: =LOOKUP($E$142,$140:$140,164:164) -> 0.1418667987 | H164: 0.15 | I164: =IF(I142,'Amazon Model'!H99/'Amazon Model'!H16,$H$164) -> 0.1366107839 | J164: =IF(J142,'Amazon Model'!I99/'Amazon Model'!I16,$H$164) -> 0.1442195407 | K164: =IF(K142,'Amazon Model'!J99/'Amazon Model'!J16,$H$164) -> 0.1417107734 | L164: =IF(L142,'Amazon Model'!K99/'Amazon Model'!K16,$H$164) -> 0.1551515152 | M164: =IF(M142,'Amazon Model'!L99/'Amazon Model'!L16,$H$164) -> 0.1418667987 | N164: =IF(N142,'Amazon Model'!M99/'Amazon Model'!M16,$H$164) -> 0.15 | O164: =IF(O142,'Amazon Model'!N99/'Amazon Model'!N16,$H$164) -> 0.15 | P164: =IF(P142,'Amazon Model'!O99/'Amazon Model'!O16,$H$164) -> 0.15 | Q164: =IF(Q142,'Amazon Model'!P99/'Amazon Model'!P16,$H$164) -> 0.15 | R164: =IF(R142,'Amazon Model'!Q99/'Amazon Model'!Q16,$H$164) -> 0.15 | S164: =IF(S142,'Amazon Model'!R99/'Amazon Model'!R16,$H$164) -> 0.15 | T164: =IF(T142,'Amazon Model'!S99/'Amazon Model'!S16,$H$164) -> 0.15 | U164: =IF(U142,'Amazon Model'!T99/'Amazon Model'!T16,$H$164) -> 0.15 | V164: =IF(V142,'Amazon Model'!U99/'Amazon Model'!U16,$H$164) -> 0.15 | W164: =IF(W142,'Amazon Model'!V99/'Amazon Model'!V16,$H$164) -> 0.15 | X164: =IF(X142,'Amazon Model'!W99/'Amazon Model'!W16,$H$164) -> 0.15 | Y164: =IF(Y142,'Amazon Model'!X99/'Amazon Model'!X16,$H$164) -> 0.15 | Z164: =IF(Z142,'Amazon Model'!Y99/'Amazon Model'!Y16,$H$164) -> 0.15 | AA164: =IF(AA142,'Amazon Model'!Z99/'Amazon Model'!Z16,$H$164) -> 0.15 | AB164: =IF(AB142,'Amazon Model'!AA99/'Amazon Model'!AA16,$H$164) -> 0.15 | AC164: =IF(AC142,'Amazon Model'!AB99/'Amazon Model'!AB16,$H$164) -> 0.15
C165: Other Current Assets as Percent of Revenues | E165: FALSE | F165: =AVERAGEIF($142:$142,TRUE,165:165) -> 0.001483057784 | G165: =LOOKUP($E$142,$140:$140,165:165) -> 0 | H165: 0 | I165: =IF(I142,('Amazon Model'!H100+'Amazon Model'!H101)/'Amazon Model'!H15,$H$165) -> 0.007415288918 | J165: =IF(J142,('Amazon Model'!I100+'Amazon Model'!I101)/'Amazon Model'!I15,$H$165) -> 0 | K165: =IF(K142,('Amazon Model'!J100+'Amazon Model'!J101)/'Amazon Model'!J15,$H$165) -> 0 | L165: =IF(L142,('Amazon Model'!K100+'Amazon Model'!K101)/'Amazon Model'!K15,$H$165) -> 0 | M165: =IF(M142,('Amazon Model'!L100+'Amazon Model'!L101)/'Amazon Model'!L15,$H$165) -> 0 | N165: =IF(N142,('Amazon Model'!M100+'Amazon Model'!M101)/'Amazon Model'!M15,$H$165) -> 0 | O165: =IF(O142,('Amazon Model'!N100+'Amazon Model'!N101)/'Amazon Model'!N15,$H$165) -> 0 | P165: =IF(P142,('Amazon Model'!O100+'Amazon Model'!O101)/'Amazon Model'!O15,$H$165) -> 0 | Q165: =IF(Q142,('Amazon Model'!P100+'Amazon Model'!P101)/'Amazon Model'!P15,$H$165) -> 0 | R165: =IF(R142,('Amazon Model'!Q100+'Amazon Model'!Q101)/'Amazon Model'!Q15,$H$165) -> 0 | S165: =IF(S142,('Amazon Model'!R100+'Amazon Model'!R101)/'Amazon Model'!R15,$H$165) -> 0 | T165: =IF(T142,('Amazon Model'!S100+'Amazon Model'!S101)/'Amazon Model'!S15,$H$165) -> 0 | U165: =IF(U142,('Amazon Model'!T100+'Amazon Model'!T101)/'Amazon Model'!T15,$H$165) -> 0 | V165: =IF(V142,('Amazon Model'!U100+'Amazon Model'!U101)/'Amazon Model'!U15,$H$165) -> 0 | W165: =IF(W142,('Amazon Model'!V100+'Amazon Model'!V101)/'Amazon Model'!V15,$H$165) -> 0 | X165: =IF(X142,('Amazon Model'!W100+'Amazon Model'!W101)/'Amazon Model'!W15,$H$165) -> 0 | Y165: =IF(Y142,('Amazon Model'!X100+'Amazon Model'!X101)/'Amazon Model'!X15,$H$165) -> 0 | Z165: =IF(Z142,('Amazon Model'!Y100+'Amazon Model'!Y101)/'Amazon Model'!Y15,$H$165) -> 0 | AA165: =IF(AA142,('Amazon Model'!Z100+'Amazon Model'!Z101)/'Amazon Model'!Z15,$H$165) -> 0 | AB165: =IF(AB142,('Amazon Model'!AA100+'Amazon Model'!AA101)/'Amazon Model'!AA15,$H$165) -> 0 | AC165: =IF(AC142,('Amazon Model'!AB100+'Amazon Model'!AB101)/'Amazon Model'!AB15,$H$165) -> 0
C166: Accounts Payable as Percent of Expenses | E166: FALSE | F166: =AVERAGEIF($142:$142,TRUE,166:166) -> 0.2093057162 | G166: =LOOKUP($E$142,$140:$140,166:166) -> 0.2038662908 | H166: 0.18 | I166: =IF(I142,'Amazon Model'!H113/I162,$H$166) -> 0.2280041082 | J166: =IF(J142,'Amazon Model'!I113/J162,$H$166) -> 0.213700565 | K166: =IF(K142,'Amazon Model'!J113/K162,$H$166) -> 0.1947928876 | L166: =IF(L142,'Amazon Model'!K113/L162,$H$166) -> 0.2061647297 | M166: =IF(M142,'Amazon Model'!L113/M162,$H$166) -> 0.2038662908 | N166: =IF(N142,'Amazon Model'!M113/N162,$H$166) -> 0.18 | O166: =IF(O142,'Amazon Model'!N113/O162,$H$166) -> 0.18 | P166: =IF(P142,'Amazon Model'!O113/P162,$H$166) -> 0.18 | Q166: =IF(Q142,'Amazon Model'!P113/Q162,$H$166) -> 0.18 | R166: =IF(R142,'Amazon Model'!Q113/R162,$H$166) -> 0.18 | S166: =IF(S142,'Amazon Model'!R113/S162,$H$166) -> 0.18 | T166: =IF(T142,'Amazon Model'!S113/T162,$H$166) -> 0.18 | U166: =IF(U142,'Amazon Model'!T113/U162,$H$166) -> 0.18 | V166: =IF(V142,'Amazon Model'!U113/V162,$H$166) -> 0.18 | W166: =IF(W142,'Amazon Model'!V113/W162,$H$166) -> 0.18 | X166: =IF(X142,'Amazon Model'!W113/X162,$H$166) -> 0.18 | Y166: =IF(Y142,'Amazon Model'!X113/Y162,$H$166) -> 0.18 | Z166: =IF(Z142,'Amazon Model'!Y113/Z162,$H$166) -> 0.18 | AA166: =IF(AA142,'Amazon Model'!Z113/AA162,$H$166) -> 0.18 | AB166: =IF(AB142,'Amazon Model'!AA113/AB162,$H$166) -> 0.18 | AC166: =IF(AC142,'Amazon Model'!AB113/AC162,$H$166) -> 0.18
C167: Taxes Payable as Percent of Taxes | I167: =IF('Amazon Model'!H5,'Amazon Model'!H114/'Amazon Model'!H31) -> 0 | J167: =IF('Amazon Model'!I5,'Amazon Model'!I114/'Amazon Model'!I31) -> 0 | K167: =IF('Amazon Model'!J5,'Amazon Model'!J114/'Amazon Model'!J31) -> 0 | L167: =IF('Amazon Model'!K5,'Amazon Model'!K114/'Amazon Model'!K31) -> 0 | M167: =IF('Amazon Model'!L5,'Amazon Model'!L114/'Amazon Model'!L31) -> 0 | N167: =IF('Amazon Model'!M5,'Amazon Model'!M114/'Amazon Model'!M31) -> FALSE
C168: Other Current Liabilites as Percent of Revenues | E168: FALSE | F168: =AVERAGEIF($142:$142,TRUE,168:168) -> 0.08790188437 | G168: =LOOKUP($E$142,$140:$140,168:168) -> 0.09787484374 | H168: 0.07 | I168: =IF(I$142,'Amazon Model'!H115/'Amazon Model'!H15,$H$168) -> 0.074480275 | J168: =IF(J$142,'Amazon Model'!I115/'Amazon Model'!I15,$H$168) -> 0.08206850235 | K168: =IF(K$142,'Amazon Model'!J115/'Amazon Model'!J15,$H$168) -> 0.09023485223 | L168: =IF(L$142,'Amazon Model'!K115/'Amazon Model'!K15,$H$168) -> 0.09485094851 | M168: =IF(M$142,'Amazon Model'!L115/'Amazon Model'!L15,$H$168) -> 0.09787484374 | N168: =IF(N$142,'Amazon Model'!M115/'Amazon Model'!M15,$H$168) -> 0.07 | O168: =IF(O$142,'Amazon Model'!N115/'Amazon Model'!N15,$H$168) -> 0.07 | P168: =IF(P$142,'Amazon Model'!O115/'Amazon Model'!O15,$H$168) -> 0.07 | Q168: =IF(Q$142,'Amazon Model'!P115/'Amazon Model'!P15,$H$168) -> 0.07 | R168: =IF(R$142,'Amazon Model'!Q115/'Amazon Model'!Q15,$H$168) -> 0.07 | S168: =IF(S$142,'Amazon Model'!R115/'Amazon Model'!R15,$H$168) -> 0.07 | T168: =IF(T$142,'Amazon Model'!S115/'Amazon Model'!S15,$H$168) -> 0.07 | U168: =IF(U$142,'Amazon Model'!T115/'Amazon Model'!T15,$H$168) -> 0.07 | V168: =IF(V$142,'Amazon Model'!U115/'Amazon Model'!U15,$H$168) -> 0.07 | W168: =IF(W$142,'Amazon Model'!V115/'Amazon Model'!V15,$H$168) -> 0.07 | X168: =IF(X$142,'Amazon Model'!W115/'Amazon Model'!W15,$H$168) -> 0.07 | Y168: =IF(Y$142,'Amazon Model'!X115/'Amazon Model'!X15,$H$168) -> 0.07 | Z168: =IF(Z$142,'Amazon Model'!Y115/'Amazon Model'!Y15,$H$168) -> 0.07 | AA168: =IF(AA$142,'Amazon Model'!Z115/'Amazon Model'!Z15,$H$168) -> 0.07 | AB168: =IF(AB$142,'Amazon Model'!AA115/'Amazon Model'!AA15,$H$168) -> 0.07 | AC168: =IF(AC$142,'Amazon Model'!AB115/'Amazon Model'!AB15,$H$168) -> 0.07
C169: Working Capital as Percent of EBITDA
B171: Depreciation
C172: Depreciation Expense as Percent of Gross Assets | I172: =IF('Amazon Model'!H5,'Amazon Model'!H23/'Amazon Model'!H103) -> 0.1743215031 | J172: =IF('Amazon Model'!I5,'Amazon Model'!I23/'Amazon Model'!H103) -> 0.2745302714 | K172: =IF('Amazon Model'!J5,'Amazon Model'!J23/'Amazon Model'!I103) -> 0.2707630149 | L172: =IF('Amazon Model'!K5,'Amazon Model'!K23/'Amazon Model'!J103) -> 0.236691597 | M172: =IF('Amazon Model'!L5,'Amazon Model'!L23/'Amazon Model'!K103) -> 0.2396006656 | N172: =IF('Amazon Model'!M5,'Amazon Model'!M23/'Amazon Model'!L103) -> FALSE
C173: Depreciation Expense as Percent of Net Assets | E173: FALSE | F173: 2 | G173: =AVERAGEIF($142:$142,TRUE,173:173) -> 0.3243951214 | H173: 0.25 | I173: =IF(I142,'Amazon Model'!H23/'Amazon Model'!H105,CHOOSE($F$173,$G$173,$H$173)) -> 0.2365439093 | J173: =IF(J142,'Amazon Model'!I23/'Amazon Model'!H105,CHOOSE($F$173,$G$173,$H$173)) -> 0.3725212465 | K173: =IF(K142,'Amazon Model'!J23/'Amazon Model'!I105,CHOOSE($F$173,$G$173,$H$173)) -> 0.3662100685 | L173: =IF(L142,'Amazon Model'!K23/'Amazon Model'!J105,CHOOSE($F$173,$G$173,$H$173)) -> 0.317030053 | M173: =IF(M142,'Amazon Model'!L23/'Amazon Model'!K105,CHOOSE($F$173,$G$173,$H$173)) -> 0.3296703297 | N173: 0.3 | O173: 0.29 | P173: =IF(P142,'Amazon Model'!O23/'Amazon Model'!N105,CHOOSE($F$173,$G$173,$H$173)) -> 0.25 | Q173: =IF(Q142,'Amazon Model'!P23/'Amazon Model'!O105,CHOOSE($F$173,$G$173,$H$173)) -> 0.25 | R173: =IF(R142,'Amazon Model'!Q23/'Amazon Model'!P105,CHOOSE($F$173,$G$173,$H$173)) -> 0.25 | S173: =IF(S142,'Amazon Model'!R23/'Amazon Model'!Q105,CHOOSE($F$173,$G$173,$H$173)) -> 0.25 | T173: =IF(T142,'Amazon Model'!S23/'Amazon Model'!R105,CHOOSE($F$173,$G$173,$H$173)) -> 0.25 | U173: =IF(U142,'Amazon Model'!T23/'Amazon Model'!S105,CHOOSE($F$173,$G$173,$H$173)) -> 0.25 | V173: =IF(V142,'Amazon Model'!U23/'Amazon Model'!T105,CHOOSE($F$173,$G$173,$H$173)) -> 0.25 | W173: =IF(W142,'Amazon Model'!V23/'Amazon Model'!U105,CHOOSE($F$173,$G$173,$H$173)) -> 0.25 | X173: =IF(X142,'Amazon Model'!W23/'Amazon Model'!V105,CHOOSE($F$173,$G$173,$H$173)) -> 0.25 | Y173: =IF(Y142,'Amazon Model'!X23/'Amazon Model'!W105,CHOOSE($F$173,$G$173,$H$173)) -> 0.25 | Z173: =IF(Z142,'Amazon Model'!Y23/'Amazon Model'!X105,CHOOSE($F$173,$G$173,$H$173)) -> 0.25 | AA173: =IF(AA142,'Amazon Model'!Z23/'Amazon Model'!Y105,CHOOSE($F$173,$G$173,$H$173)) -> 0.25 | AB173: =IF(AB142,'Amazon Model'!AA23/'Amazon Model'!Z105,CHOOSE($F$173,$G$173,$H$173)) -> 0.25 | AC173: =IF(AC142,'Amazon Model'!AB23/'Amazon Model'!AA105,CHOOSE($F$173,$G$173,$H$173)) -> 0.25
C174: Amortisation as Percent of Intangibles | E174: FALSE | F174: 1 | G174: =AVERAGEIF($142:$142,TRUE,174:174) -> 0.05647212844 | H174: =LOOKUP($E$142,$140:$140,174:174) -> 0.06042105263 | I174: =IF(I142,'Amazon Model'!H24/'Amazon Model'!H107,CHOOSE($F$174,$G$174,$H$174)) -> 0.04969512195 | J174: =IF(J142,'Amazon Model'!I24/'Amazon Model'!H107,CHOOSE($F$174,$G$174,$H$174)) -> 0.0512195122 | K174: =IF(K142,'Amazon Model'!J24/'Amazon Model'!I107,CHOOSE($F$174,$G$174,$H$174)) -> 0.05484848485 | L174: =IF(L142,'Amazon Model'!K24/'Amazon Model'!J107,CHOOSE($F$174,$G$174,$H$174)) -> 0.06617647059 | M174: =IF(M142,'Amazon Model'!L24/'Amazon Model'!K107,CHOOSE($F$174,$G$174,$H$174)) -> 0.06042105263 | N174: =IF(N142,'Amazon Model'!M24/'Amazon Model'!L107,CHOOSE($F$174,$G$174,$H$174)) -> 0.05647212844 | O174: =IF(O142,'Amazon Model'!N24/'Amazon Model'!M107,CHOOSE($F$174,$G$174,$H$174)) -> 0.05647212844 | P174: =IF(P142,'Amazon Model'!O24/'Amazon Model'!N107,CHOOSE($F$174,$G$174,$H$174)) -> 0.05647212844 | Q174: =IF(Q142,'Amazon Model'!P24/'Amazon Model'!O107,CHOOSE($F$174,$G$174,$H$174)) -> 0.05647212844 | R174: =IF(R142,'Amazon Model'!Q24/'Amazon Model'!P107,CHOOSE($F$174,$G$174,$H$174)) -> 0.05647212844 | S174: =IF(S142,'Amazon Model'!R24/'Amazon Model'!Q107,CHOOSE($F$174,$G$174,$H$174)) -> 0.05647212844 | T174: =IF(T142,'Amazon Model'!S24/'Amazon Model'!R107,CHOOSE($F$174,$G$174,$H$174)) -> 0.05647212844 | U174: =IF(U142,'Amazon Model'!T24/'Amazon Model'!S107,CHOOSE($F$174,$G$174,$H$174)) -> 0.05647212844 | V174: =IF(V142,'Amazon Model'!U24/'Amazon Model'!T107,CHOOSE($F$174,$G$174,$H$174)) -> 0.05647212844 | W174: =IF(W142,'Amazon Model'!V24/'Amazon Model'!U107,CHOOSE($F$174,$G$174,$H$174)) -> 0.05647212844 | X174: =IF(X142,'Amazon Model'!W24/'Amazon Model'!V107,CHOOSE($F$174,$G$174,$H$174)) -> 0.05647212844 | Y174: =IF(Y142,'Amazon Model'!X24/'Amazon Model'!W107,CHOOSE($F$174,$G$174,$H$174)) -> 0.05647212844 | Z174: =IF(Z142,'Amazon Model'!Y24/'Amazon Model'!X107,CHOOSE($F$174,$G$174,$H$174)) -> 0.05647212844 | AA174: =IF(AA142,'Amazon Model'!Z24/'Amazon Model'!Y107,CHOOSE($F$174,$G$174,$H$174)) -> 0.05647212844 | AB174: =IF(AB142,'Amazon Model'!AA24/'Amazon Model'!Z107,CHOOSE($F$174,$G$174,$H$174)) -> 0.05647212844 | AC174: =IF(AC142,'Amazon Model'!AB24/'Amazon Model'!AA107,CHOOSE($F$174,$G$174,$H$174)) -> 0.05647212844
B176: Other Expenses and Income
C177: Cash and Investments | I177: ='Amazon Model'!H97+'Amazon Model'!H106 -> 11601000 | J177: ='Amazon Model'!I97+'Amazon Model'!I106 -> 12970000 | K177: ='Amazon Model'!J97+'Amazon Model'!J106 -> 18306000 | L177: ='Amazon Model'!K97+'Amazon Model'!K106 -> 20228000 | M177: ='Amazon Model'!L97+'Amazon Model'!L106 -> 26695000 | N177: ='Amazon Model'!M97+'Amazon Model'!M106 -> 0
C178: Non-Operating Income | E178: FALSE | F178: 1 | G178: =AVERAGEIF($142:$142,TRUE,178:178) -> -262200 | H178: =LOOKUP($E$142,$140:$140,178:178) -> -144000 | I178: =IF(I141,'Amazon Model'!H26,CHOOSE($F$178,$G$178,$H$178)) -> -239000 | J178: =IF(J141,'Amazon Model'!I26,CHOOSE($F$178,$G$178,$H$178)) -> -250000 | K178: =IF(K141,'Amazon Model'!J26,CHOOSE($F$178,$G$178,$H$178)) -> -251000 | L178: =IF(L141,'Amazon Model'!K26,CHOOSE($F$178,$G$178,$H$178)) -> -427000 | M178: =IF(M141,'Amazon Model'!L26,CHOOSE($F$178,$G$178,$H$178)) -> -144000 | N178: =IF(N141,'Amazon Model'!M26,CHOOSE($F$178,$G$178,$H$178)) -> -262200 | O178: =IF(O141,'Amazon Model'!N26,CHOOSE($F$178,$G$178,$H$178)) -> -262200 | P178: =IF(P141,'Amazon Model'!O26,CHOOSE($F$178,$G$178,$H$178)) -> -262200 | Q178: =IF(Q141,'Amazon Model'!P26,CHOOSE($F$178,$G$178,$H$178)) -> -262200 | R178: =IF(R141,'Amazon Model'!Q26,CHOOSE($F$178,$G$178,$H$178)) -> -262200 | S178: =IF(S141,'Amazon Model'!R26,CHOOSE($F$178,$G$178,$H$178)) -> -262200 | T178: =IF(T141,'Amazon Model'!S26,CHOOSE($F$178,$G$178,$H$178)) -> -262200 | U178: =IF(U141,'Amazon Model'!T26,CHOOSE($F$178,$G$178,$H$178)) -> -262200 | V178: =IF(V141,'Amazon Model'!U26,CHOOSE($F$178,$G$178,$H$178)) -> -262200 | W178: =IF(W141,'Amazon Model'!V26,CHOOSE($F$178,$G$178,$H$178)) -> -262200 | X178: =IF(X141,'Amazon Model'!W26,CHOOSE($F$178,$G$178,$H$178)) -> -262200 | Y178: =IF(Y141,'Amazon Model'!X26,CHOOSE($F$178,$G$178,$H$178)) -> -262200 | Z178: =IF(Z141,'Amazon Model'!Y26,CHOOSE($F$178,$G$178,$H$178)) -> -262200 | AA178: =IF(AA141,'Amazon Model'!Z26,CHOOSE($F$178,$G$178,$H$178)) -> -262200 | AB178: =IF(AB141,'Amazon Model'!AA26,CHOOSE($F$178,$G$178,$H$178)) -> -262200 | AC178: =IF(AC141,'Amazon Model'!AB26,CHOOSE($F$178,$G$178,$H$178)) -> -262200
C179: Interest and Other Income as Percent of Investments | I179: =IF('Amazon Model'!H5,('Amazon Model'!H26/I177)) -> -0.02060167227 | J179: =IF('Amazon Model'!I5,('Amazon Model'!I26/J177)) -> -0.01927525058 | K179: =IF('Amazon Model'!J5,('Amazon Model'!J26/K177)) -> -0.01371135147 | L179: =IF('Amazon Model'!K5,('Amazon Model'!K26/L177)) -> -0.02110935337 | M179: =IF('Amazon Model'!L5,('Amazon Model'!L26/M177)) -> -0.00539426859 | N179: =IF('Amazon Model'!M5,('Amazon Model'!M26/N177)) -> FALSE
C180: Other Assets | E180: FALSE | F180: 1 | G180: =AVERAGEIF($142:$142,TRUE,180:180) -> 1361400 | H180: =LOOKUP($E$142,$140:$140,180:180) -> 2700000 | I180: =IF(I142,'Amazon Model'!H108,CHOOSE($F$180,$G$180,$H$180)) -> 648000 | J180: =IF(J142,'Amazon Model'!I108,CHOOSE($F$180,$G$180,$H$180)) -> 538000 | K180: =IF(K142,'Amazon Model'!J108,CHOOSE($F$180,$G$180,$H$180)) -> 971000 | L180: =IF(L142,'Amazon Model'!K108,CHOOSE($F$180,$G$180,$H$180)) -> 1950000 | M180: =IF(M142,'Amazon Model'!L108,CHOOSE($F$180,$G$180,$H$180)) -> 2700000 | N180: =IF(N142,'Amazon Model'!M108,CHOOSE($F$180,$G$180,$H$180)) -> 1361400 | O180: =IF(O142,'Amazon Model'!N108,CHOOSE($F$180,$G$180,$H$180)) -> 1361400 | P180: =IF(P142,'Amazon Model'!O108,CHOOSE($F$180,$G$180,$H$180)) -> 1361400 | Q180: =IF(Q142,'Amazon Model'!P108,CHOOSE($F$180,$G$180,$H$180)) -> 1361400 | R180: =IF(R142,'Amazon Model'!Q108,CHOOSE($F$180,$G$180,$H$180)) -> 1361400 | S180: =IF(S142,'Amazon Model'!R108,CHOOSE($F$180,$G$180,$H$180)) -> 1361400 | T180: =IF(T142,'Amazon Model'!S108,CHOOSE($F$180,$G$180,$H$180)) -> 1361400 | U180: =IF(U142,'Amazon Model'!T108,CHOOSE($F$180,$G$180,$H$180)) -> 1361400 | V180: =IF(V142,'Amazon Model'!U108,CHOOSE($F$180,$G$180,$H$180)) -> 1361400 | W180: =IF(W142,'Amazon Model'!V108,CHOOSE($F$180,$G$180,$H$180)) -> 1361400 | X180: =IF(X142,'Amazon Model'!W108,CHOOSE($F$180,$G$180,$H$180)) -> 1361400 | Y180: =IF(Y142,'Amazon Model'!X108,CHOOSE($F$180,$G$180,$H$180)) -> 1361400 | Z180: =IF(Z142,'Amazon Model'!Y108,CHOOSE($F$180,$G$180,$H$180)) -> 1361400 | AA180: =IF(AA142,'Amazon Model'!Z108,CHOOSE($F$180,$G$180,$H$180)) -> 1361400 | AB180: =IF(AB142,'Amazon Model'!AA108,CHOOSE($F$180,$G$180,$H$180)) -> 1361400 | AC180: =IF(AC142,'Amazon Model'!AB108,CHOOSE($F$180,$G$180,$H$180)) -> 1361400
C181: Equity Income After Tax | E181: FALSE | F181: 1 | G181: =AVERAGEIF($142:$142,TRUE,181:181) -> -58399.95 | H181: =LOOKUP($E$142,$140:$140,181:181) -> -92000 | I181: =IF(I142,('Amazon Model'!H28+'Amazon Model'!H32+'Amazon Model'!H33+'Amazon Model'!H35),CHOOSE($F$181,$G$181,$H$181)) -> -157000 | J181: =IF(J142,('Amazon Model'!I28+'Amazon Model'!I32+'Amazon Model'!I33+'Amazon Model'!I35),CHOOSE($F$181,$G$181,$H$181)) -> -64000 | K181: =IF(K142,('Amazon Model'!J28+'Amazon Model'!J32+'Amazon Model'!J33+'Amazon Model'!J35),CHOOSE($F$181,$G$181,$H$181)) -> 49000.25 | L181: =IF(L142,('Amazon Model'!K28+'Amazon Model'!K32+'Amazon Model'!K33+'Amazon Model'!K35),CHOOSE($F$181,$G$181,$H$181)) -> -28000 | M181: =IF(M142,('Amazon Model'!L28+'Amazon Model'!L32+'Amazon Model'!L33+'Amazon Model'!L35),CHOOSE($F$181,$G$181,$H$181)) -> -92000 | N181: =IF(N142,('Amazon Model'!M28+'Amazon Model'!M32+'Amazon Model'!M33+'Amazon Model'!M35),CHOOSE($F$181,$G$181,$H$181)) -> -58399.95 | O181: =IF(O142,('Amazon Model'!N28+'Amazon Model'!N32+'Amazon Model'!N33+'Amazon Model'!N35),CHOOSE($F$181,$G$181,$H$181)) -> -58399.95 | P181: =IF(P142,('Amazon Model'!O28+'Amazon Model'!O32+'Amazon Model'!O33+'Amazon Model'!O35),CHOOSE($F$181,$G$181,$H$181)) -> -58399.95 | Q181: =IF(Q142,('Amazon Model'!P28+'Amazon Model'!P32+'Amazon Model'!P33+'Amazon Model'!P35),CHOOSE($F$181,$G$181,$H$181)) -> -58399.95 | R181: =IF(R142,('Amazon Model'!Q28+'Amazon Model'!Q32+'Amazon Model'!Q33+'Amazon Model'!Q35),CHOOSE($F$181,$G$181,$H$181)) -> -58399.95 | S181: =IF(S142,('Amazon Model'!R28+'Amazon Model'!R32+'Amazon Model'!R33+'Amazon Model'!R35),CHOOSE($F$181,$G$181,$H$181)) -> -58399.95 | T181: =IF(T142,('Amazon Model'!S28+'Amazon Model'!S32+'Amazon Model'!S33+'Amazon Model'!S35),CHOOSE($F$181,$G$181,$H$181)) -> -58399.95 | U181: =IF(U142,('Amazon Model'!T28+'Amazon Model'!T32+'Amazon Model'!T33+'Amazon Model'!T35),CHOOSE($F$181,$G$181,$H$181)) -> -58399.95 | V181: =IF(V142,('Amazon Model'!U28+'Amazon Model'!U32+'Amazon Model'!U33+'Amazon Model'!U35),CHOOSE($F$181,$G$181,$H$181)) -> -58399.95 | W181: =IF(W142,('Amazon Model'!V28+'Amazon Model'!V32+'Amazon Model'!V33+'Amazon Model'!V35),CHOOSE($F$181,$G$181,$H$181)) -> -58399.95 | X181: =IF(X142,('Amazon Model'!W28+'Amazon Model'!W32+'Amazon Model'!W33+'Amazon Model'!W35),CHOOSE($F$181,$G$181,$H$181)) -> -58399.95 | Y181: =IF(Y142,('Amazon Model'!X28+'Amazon Model'!X32+'Amazon Model'!X33+'Amazon Model'!X35),CHOOSE($F$181,$G$181,$H$181)) -> -58399.95 | Z181: =IF(Z142,('Amazon Model'!Y28+'Amazon Model'!Y32+'Amazon Model'!Y33+'Amazon Model'!Y35),CHOOSE($F$181,$G$181,$H$181)) -> -58399.95 | AA181: =IF(AA142,('Amazon Model'!Z28+'Amazon Model'!Z32+'Amazon Model'!Z33+'Amazon Model'!Z35),CHOOSE($F$181,$G$181,$H$181)) -> -58399.95 | AB181: =IF(AB142,('Amazon Model'!AA28+'Amazon Model'!AA32+'Amazon Model'!AA33+'Amazon Model'!AA35),CHOOSE($F$181,$G$181,$H$181)) -> -58399.95 | AC181: =IF(AC142,('Amazon Model'!AB28+'Amazon Model'!AB32+'Amazon Model'!AB33+'Amazon Model'!AB35),CHOOSE($F$181,$G$181,$H$181)) -> -58399.95
C182: Other Income as Percent of Other Assets | I182: =IF('Amazon Model'!H5,I181/I180) -> -0.2422839506 | J182: =IF('Amazon Model'!I5,J181/J180) -> -0.1189591078 | K182: =IF('Amazon Model'!J5,K181/K180) -> 0.05046369722 | L182: =IF('Amazon Model'!K5,L181/L180) -> -0.01435897436 | M182: =IF('Amazon Model'!L5,M181/M180) -> -0.03407407407 | N182: =IF('Amazon Model'!M5,N181/N180) -> FALSE
C183: Total Debt | I183: ='Amazon Model'!H112+'Amazon Model'!H117 -> 4970000 | J183: ='Amazon Model'!I112+'Amazon Model'!I117 -> 6920000 | K183: ='Amazon Model'!J112+'Amazon Model'!J117 -> 16090000 | L183: ='Amazon Model'!K112+'Amazon Model'!K117 -> 17520000 | M183: ='Amazon Model'!L112+'Amazon Model'!L117 -> 20410000 | N183: ='Amazon Model'!M112+'Amazon Model'!M117 -> 0
C184: Interest Expense as Percent of Debt | E184: FALSE | F184: 1 | G184: =AVERAGEIF($142:$142,TRUE,184:184) -> 0.02037017393 | H184: =LOOKUP($E$142,$140:$140,184:184) -> 0.02371386575 | I184: =IF(I142,'Amazon Model'!H29/I183,CHOOSE($F$184,$G$184,$H$184)) -> 0.0185110664 | J184: =IF(J142,'Amazon Model'!I29/J183,CHOOSE($F$184,$G$184,$H$184)) -> 0.02037572254 | K184: =IF(K142,'Amazon Model'!J29/K183,CHOOSE($F$184,$G$184,$H$184)) -> 0.01305158484 | L184: =IF(L142,'Amazon Model'!K29/L183,CHOOSE($F$184,$G$184,$H$184)) -> 0.02619863014 | M184: =IF(M142,'Amazon Model'!L29/M183,CHOOSE($F$184,$G$184,$H$184)) -> 0.02371386575 | N184: =IF(N142,'Amazon Model'!M29/N183,CHOOSE($F$184,$G$184,$H$184)) -> 0.02037017393 | O184: =IF(O142,'Amazon Model'!N29/O183,CHOOSE($F$184,$G$184,$H$184)) -> 0.02037017393 | P184: =IF(P142,'Amazon Model'!O29/P183,CHOOSE($F$184,$G$184,$H$184)) -> 0.02037017393 | Q184: =IF(Q142,'Amazon Model'!P29/Q183,CHOOSE($F$184,$G$184,$H$184)) -> 0.02037017393 | R184: =IF(R142,'Amazon Model'!Q29/R183,CHOOSE($F$184,$G$184,$H$184)) -> 0.02037017393 | S184: =IF(S142,'Amazon Model'!R29/S183,CHOOSE($F$184,$G$184,$H$184)) -> 0.02037017393 | T184: =IF(T142,'Amazon Model'!S29/T183,CHOOSE($F$184,$G$184,$H$184)) -> 0.02037017393 | U184: =IF(U142,'Amazon Model'!T29/U183,CHOOSE($F$184,$G$184,$H$184)) -> 0.02037017393 | V184: =IF(V142,'Amazon Model'!U29/V183,CHOOSE($F$184,$G$184,$H$184)) -> 0.02037017393 | W184: =IF(W142,'Amazon Model'!V29/W183,CHOOSE($F$184,$G$184,$H$184)) -> 0.02037017393 | X184: =IF(X142,'Amazon Model'!W29/X183,CHOOSE($F$184,$G$184,$H$184)) -> 0.02037017393 | Y184: =IF(Y142,'Amazon Model'!X29/Y183,CHOOSE($F$184,$G$184,$H$184)) -> 0.02037017393 | Z184: =IF(Z142,'Amazon Model'!Y29/Z183,CHOOSE($F$184,$G$184,$H$184)) -> 0.02037017393 | AA184: =IF(AA142,'Amazon Model'!Z29/AA183,CHOOSE($F$184,$G$184,$H$184)) -> 0.02037017393 | AB184: =IF(AB142,'Amazon Model'!AA29/AB183,CHOOSE($F$184,$G$184,$H$184)) -> 0.02037017393 | AC184: =IF(AC142,'Amazon Model'!AB29/AC183,CHOOSE($F$184,$G$184,$H$184)) -> 0.02037017393
C185: Interest Income | I185: ='Amazon Model'!H27 -> 40000 | J185: ='Amazon Model'!I27 -> 38000 | K185: ='Amazon Model'!J27 -> 39000 | L185: ='Amazon Model'!K27 -> 50000 | M185: ='Amazon Model'!L27 -> 100000 | N185: ='Amazon Model'!M27 -> 0 | O185: ='Amazon Model'!N27 -> 0 | P185: ='Amazon Model'!O27 -> 0 | Q185: ='Amazon Model'!P27 -> 0 | R185: ='Amazon Model'!Q27 -> 0 | S185: ='Amazon Model'!R27 -> 0 | T185: ='Amazon Model'!S27 -> 0 | U185: ='Amazon Model'!T27 -> 0 | V185: ='Amazon Model'!U27 -> 0 | W185: ='Amazon Model'!V27 -> 0 | X185: ='Amazon Model'!W27 -> 0 | Y185: ='Amazon Model'!X27 -> 0 | Z185: ='Amazon Model'!Y27 -> 0 | AA185: ='Amazon Model'!Z27 -> 0 | AB185: ='Amazon Model'!AA27 -> 0 | AC185: ='Amazon Model'!AB27 -> 0
C186: Cash Balance | I186: ='Amazon Model'!H97+'Amazon Model'!H106 -> 11601000 | J186: ='Amazon Model'!I97+'Amazon Model'!I106 -> 12970000 | K186: ='Amazon Model'!J97+'Amazon Model'!J106 -> 18306000 | L186: ='Amazon Model'!K97+'Amazon Model'!K106 -> 20228000 | M186: ='Amazon Model'!L97+'Amazon Model'!L106 -> 26695000 | N186: ='Amazon Model'!M97+'Amazon Model'!M106 -> 0 | O186: ='Amazon Model'!N97+'Amazon Model'!N106 -> 0 | P186: ='Amazon Model'!O97+'Amazon Model'!O106 -> 0 | Q186: ='Amazon Model'!P97+'Amazon Model'!P106 -> 0 | R186: ='Amazon Model'!Q97+'Amazon Model'!Q106 -> 0 | S186: ='Amazon Model'!R97+'Amazon Model'!R106 -> 0 | T186: ='Amazon Model'!S97+'Amazon Model'!S106 -> 0 | U186: ='Amazon Model'!T97+'Amazon Model'!T106 -> 0 | V186: ='Amazon Model'!U97+'Amazon Model'!U106 -> 0 | W186: ='Amazon Model'!V97+'Amazon Model'!V106 -> 0 | X186: ='Amazon Model'!W97+'Amazon Model'!W106 -> 0 | Y186: ='Amazon Model'!X97+'Amazon Model'!X106 -> 0 | Z186: ='Amazon Model'!Y97+'Amazon Model'!Y106 -> 0 | AA186: ='Amazon Model'!Z97+'Amazon Model'!Z106 -> 0 | AB186: ='Amazon Model'!AA97+'Amazon Model'!AA106 -> 0 | AC186: ='Amazon Model'!AB97+'Amazon Model'!AB106 -> 0
C187: Interest Income Rate | E187: FALSE | F187: 1 | G187: =AVERAGEIF($142:$142,TRUE,187:187) -> 0.002945221367 | H187: =LOOKUP($E$142,$140:$140,187:187) -> 0.003746019854 | I187: =IF(I142,I185/I186,$H$187) -> 0.003447978623 | J187: 0.002929838088 | K187: 0.002130449033 | L187: 0.002471821238 | M187: 0.003746019854 | N187: 0.003746019854 | O187: 0.003746019854 | P187: 0.003746019854 | Q187: 0.003746019854 | R187: 0.003746019854 | S187: 0.003746019854 | T187: 0.003746019854 | U187: 0.003746019854 | V187: 0.003746019854 | W187: 0.003746019854 | X187: 0.003746019854 | Y187: 0.003746019854 | Z187: 0.003746019854 | AA187: 0.003746019854 | AB187: 0.003746019854 | AC187: 0.003746019854
B189: Income Tax and Equity
C190: Income Tax Rate | E190: FALSE | F190: 2 | G190: =AVERAGEIF($142:$142,TRUE,190:190) -> 0.1439570841 | H190: =LOOKUP($E$142,$140:$140,190:190) -> 0.3674203494 | I190: =IF(I142,'Amazon Model'!H31/'Amazon Model'!H30,CHOOSE($F$190,$G$190,$H$190)) -> 0.7838827839 | J190: =IF(J142,'Amazon Model'!I31/'Amazon Model'!I30,CHOOSE($F$190,$G$190,$H$190)) -> 0.3226452906 | K190: =IF(K142,'Amazon Model'!J31/'Amazon Model'!J30,CHOOSE($F$190,$G$190,$H$190)) -> -1.357720818 | L190: =IF(L142,'Amazon Model'!K31/'Amazon Model'!K30,CHOOSE($F$190,$G$190,$H$190)) -> 0.6035578145 | M190: =IF(M142,'Amazon Model'!L31/'Amazon Model'!L30,CHOOSE($F$190,$G$190,$H$190)) -> 0.3674203494 | N190: =IF(N142,'Amazon Model'!M31/'Amazon Model'!M30,CHOOSE($F$190,$G$190,$H$190)) -> 0.3674203494 | O190: =IF(O142,'Amazon Model'!N31/'Amazon Model'!N30,CHOOSE($F$190,$G$190,$H$190)) -> 0.3674203494 | P190: =IF(P142,'Amazon Model'!O31/'Amazon Model'!O30,CHOOSE($F$190,$G$190,$H$190)) -> 0.3674203494 | Q190: =IF(Q142,'Amazon Model'!P31/'Amazon Model'!P30,CHOOSE($F$190,$G$190,$H$190)) -> 0.3674203494 | R190: =IF(R142,'Amazon Model'!Q31/'Amazon Model'!Q30,CHOOSE($F$190,$G$190,$H$190)) -> 0.3674203494 | S190: =IF(S142,'Amazon Model'!R31/'Amazon Model'!R30,CHOOSE($F$190,$G$190,$H$190)) -> 0.3674203494 | T190: =IF(T142,'Amazon Model'!S31/'Amazon Model'!S30,CHOOSE($F$190,$G$190,$H$190)) -> 0.3674203494 | U190: =IF(U142,'Amazon Model'!T31/'Amazon Model'!T30,CHOOSE($F$190,$G$190,$H$190)) -> 0.3674203494 | V190: =IF(V142,'Amazon Model'!U31/'Amazon Model'!U30,CHOOSE($F$190,$G$190,$H$190)) -> 0.3674203494 | W190: =IF(W142,'Amazon Model'!V31/'Amazon Model'!V30,CHOOSE($F$190,$G$190,$H$190)) -> 0.3674203494 | X190: =IF(X142,'Amazon Model'!W31/'Amazon Model'!W30,CHOOSE($F$190,$G$190,$H$190)) -> 0.3674203494 | Y190: =IF(Y142,'Amazon Model'!X31/'Amazon Model'!X30,CHOOSE($F$190,$G$190,$H$190)) -> 0.3674203494 | Z190: =IF(Z142,'Amazon Model'!Y31/'Amazon Model'!Y30,CHOOSE($F$190,$G$190,$H$190)) -> 0.3674203494 | AA190: =IF(AA142,'Amazon Model'!Z31/'Amazon Model'!Z30,CHOOSE($F$190,$G$190,$H$190)) -> 0.3674203494 | AB190: =IF(AB142,'Amazon Model'!AA31/'Amazon Model'!AA30,CHOOSE($F$190,$G$190,$H$190)) -> 0.3674203494 | AC190: =IF(AC142,'Amazon Model'!AB31/'Amazon Model'!AB30,CHOOSE($F$190,$G$190,$H$190)) -> 0.3674203494
C191: Minority Income Percent | I191: =IF('Amazon Model'!H5,'Amazon Model'!H37/'Amazon Model'!H36) -> 0 | J191: =IF('Amazon Model'!I5,'Amazon Model'!I37/'Amazon Model'!I36) -> 0 | K191: =IF('Amazon Model'!J5,'Amazon Model'!J37/'Amazon Model'!J36) -> 0 | L191: =IF('Amazon Model'!K5,'Amazon Model'!K37/'Amazon Model'!K36) -> 0 | M191: =IF('Amazon Model'!L5,'Amazon Model'!L37/'Amazon Model'!L36) -> 0 | N191: =IF('Amazon Model'!M5,'Amazon Model'!M37/'Amazon Model'!M36) -> FALSE
C192: Dividend as Percent of Income | I192: =IF('Amazon Model'!H5,-'Amazon Model'!H72/'Amazon Model'!H38) -> 0 | J192: =IF('Amazon Model'!I5,-'Amazon Model'!I72/'Amazon Model'!I38) -> 0 | K192: =IF('Amazon Model'!J5,-'Amazon Model'!J72/'Amazon Model'!J38) -> 0 | L192: =IF('Amazon Model'!K5,-'Amazon Model'!K72/'Amazon Model'!K38) -> 0 | M192: =IF('Amazon Model'!L5,-'Amazon Model'!L72/'Amazon Model'!L38) -> 0 | N192: =IF('Amazon Model'!M5,-'Amazon Model'!M72/'Amazon Model'!M38) -> FALSE
C193: Other Funds | E193: FALSE | F193: 1 | G193: =AVERAGEIF($142:$142,TRUE,193:193) -> 2224000 | H193: =LOOKUP($E$142,$140:$140,193:193) -> 2920000 | I193: =IF(I142,'Amazon Model'!H56,CHOOSE($F$193,$G$193,$H$193)) -> 1130000 | J193: =IF(J142,'Amazon Model'!I56,CHOOSE($F$193,$G$193,$H$193)) -> 1790000 | K193: =IF(K142,'Amazon Model'!J56,CHOOSE($F$193,$G$193,$H$193)) -> 2240000 | L193: =IF(L142,'Amazon Model'!K56,CHOOSE($F$193,$G$193,$H$193)) -> 3040000 | M193: =IF(M142,'Amazon Model'!L56,CHOOSE($F$193,$G$193,$H$193)) -> 2920000 | N193: =IF(N142,'Amazon Model'!M56,CHOOSE($F$193,$G$193,$H$193)) -> 2224000 | O193: =IF(O142,'Amazon Model'!N56,CHOOSE($F$193,$G$193,$H$193)) -> 2224000 | P193: =IF(P142,'Amazon Model'!O56,CHOOSE($F$193,$G$193,$H$193)) -> 2224000 | Q193: =IF(Q142,'Amazon Model'!P56,CHOOSE($F$193,$G$193,$H$193)) -> 2224000 | R193: =IF(R142,'Amazon Model'!Q56,CHOOSE($F$193,$G$193,$H$193)) -> 2224000 | S193: =IF(S142,'Amazon Model'!R56,CHOOSE($F$193,$G$193,$H$193)) -> 2224000 | T193: =IF(T142,'Amazon Model'!S56,CHOOSE($F$193,$G$193,$H$193)) -> 2224000 | U193: =IF(U142,'Amazon Model'!T56,CHOOSE($F$193,$G$193,$H$193)) -> 2224000 | V193: =IF(V142,'Amazon Model'!U56,CHOOSE($F$193,$G$193,$H$193)) -> 2224000 | W193: =IF(W142,'Amazon Model'!V56,CHOOSE($F$193,$G$193,$H$193)) -> 2224000 | X193: =IF(X142,'Amazon Model'!W56,CHOOSE($F$193,$G$193,$H$193)) -> 2224000 | Y193: =IF(Y142,'Amazon Model'!X56,CHOOSE($F$193,$G$193,$H$193)) -> 2224000 | Z193: =IF(Z142,'Amazon Model'!Y56,CHOOSE($F$193,$G$193,$H$193)) -> 2224000 | AA193: =IF(AA142,'Amazon Model'!Z56,CHOOSE($F$193,$G$193,$H$193)) -> 2224000 | AB193: =IF(AB142,'Amazon Model'!AA56,CHOOSE($F$193,$G$193,$H$193)) -> 2224000 | AC193: =IF(AC142,'Amazon Model'!AB56,CHOOSE($F$193,$G$193,$H$193)) -> 2224000
C194: Unsual Expense | I194: ='Amazon Model'!H22 -> 0 | J194: ='Amazon Model'!I22 -> 0 | K194: ='Amazon Model'!J22 -> 0 | L194: ='Amazon Model'!K22 -> 0 | M194: ='Amazon Model'!L22 -> -67000 | N194: ='Amazon Model'!M22 -> 0
C195: Other Funds as Percent of Unusual Expense | I195: =IFERROR(IF('Amazon Model'!H5,I193/I194),0) -> 0 | J195: =IFERROR(IF('Amazon Model'!I5,J193/J194),0) -> 0 | K195: =IFERROR(IF('Amazon Model'!J5,K193/K194),0) -> 0 | L195: =IFERROR(IF('Amazon Model'!K5,L193/L194),0) -> 0 | M195: =IFERROR(IF('Amazon Model'!L5,M193/M194),0) -> -43.58208955 | N195: =IFERROR(IF('Amazon Model'!M5,N193/N194),0) -> FALSE
C197: Extraordinaries & Discontinued Operations | I197: ='Amazon Model'!H39 -> 0 | J197: ='Amazon Model'!I39 -> 0 | K197: ='Amazon Model'!J39 -> 0 | L197: ='Amazon Model'!K39 -> 0 | M197: ='Amazon Model'!L39 -> 0 | N197: ='Amazon Model'!M39 -> 0
A201: Time Series Variables
B202: Growth | E202: =F147 -> 1 | H202: 2018 | I202: 2019 | J202: =I202+4 -> 2023 | K202: =J202+4 -> 2027
C203: Base Case | H203: 0.29 | I203: 0.2 | J203: 0.15 | K203: 0.05 | N203: =O203 -> 0.29 | O203: =interpolate_look_up(O140,202:202,203:203) -> 0.29 | P203: =interpolate_look_up(P140,202:202,203:203) -> 0.2 | Q203: =interpolate_look_up(Q140,202:202,203:203) -> 0.1861209718 | R203: 0.1732050808 | S203: 0.1611854898 | T203: 0.15 | U203: 0.1139753528 | V203: 0.08660254038 | W203: 0.06580370065 | X203: 0.05 | Y203: 0.05 | Z203: 0.05 | AA203: 0.05 | AB203: 0.05 | AC203: 0.05
C204: Case 1 - Higher Growth | H204: 0.32 | I204: 0.2 | J204: 0.18 | K204: 0.07 | N204: =O204 -> 0.32 | O204: =interpolate_look_up(O$140,$202:$202,204:204) -> 0.32 | P204: 0.2 | Q204: 0.1948007493 | R204: 0.1897366596 | S204: 0.1848042173 | T204: 0.18 | U204: 0.1421441166 | V204: 0.1122497216 | W204: 0.08864243065 | X204: 0.07 | Y204: 0.07 | Z204: 0.07 | AA204: 0.07 | AB204: 0.07 | AC204: 0.07
C205: Case 2 - Lower Growth | H205: 0.25 | I205: 0.1 | J205: 0.08 | K205: 0.03 | N205: 0.25 | O205: 0.25 | P205: 0.1 | Q205: 0.0945741609 | R205: 0.0894427191 | S205: 0.08458970108 | T205: 0.08 | U205: 0.0626033832 | V205: 0.04898979486 | W205: 0.03833658625 | X205: 0.03 | Y205: 0.03 | Z205: 0.03 | AA205: 0.03 | AB205: 0.03 | AC205: 0.03
C206: Case 3 - Varying Growth | H206: 0.29 | I206: 0.12 | J206: 0.15 | K206: 0.04 | N206: 0.29 | O206: 0.29 | P206: 0.12 | Q206: 0.1268845516 | R206: 0.1341640786 | S206: 0.1418612414 | T206: 0.15 | U206: 0.1077912336 | V206: 0.07745966692 | W206: 0.05566315367 | X206: 0.04 | Y206: 0.04 | Z206: 0.04 | AA206: 0.04 | AB206: 0.04 | AC206: 0.04
C208: =INDEX(C203:C206,$F$147) -> Base Case | N208: =INDEX(N203:N206,$F$147) -> 0.29 | O208: =INDEX(O203:O206,$F$147) -> 0.29 | P208: 0.2 | Q208: 0.1861209718 | R208: 0.1732050808 | S208: 0.1611854898 | T208: 0.15 | U208: 0.1139753528 | V208: 0.08660254038 | W208: 0.06580370065 | X208: 0.05 | Y208: 0.05 | Z208: 0.05 | AA208: 0.05 | AB208: 0.05 | AC208: 0.05
B210: COGS Margin | E210: =F148 -> 1 | H210: 2017 | I210: 2018 | J210: =I210+4 -> 2022 | K210: =J210+4 -> 2026
C211: Base Case | H211: 0.57 | I211: 0.61 | J211: 0.58 | K211: 0.58 | N211: =interpolate_look_up(N$140,$210:$210,211:211) -> 0.57 | O211: 0.61 | P211: 0.6023575728 | Q211: 0.5948108943 | R211: 0.5873587649 | S211: 0.58 | T211: 0.58 | U211: 0.58 | V211: 0.58 | W211: 0.58 | X211: 0.58 | Y211: 0.58 | Z211: 0.58 | AA211: 0.58 | AB211: 0.58 | AC211: 0.58
C212: Case 2 - Lower Cost/High Price | H212: 0.57 | I212: 0.57 | J212: 0.57 | K212: 0.52 | N212: 0.57 | O212: 0.57 | P212: =interpolate_look_up(P$140,$210:$210,212:212) -> 0.57 | Q212: 0.57 | R212: 0.57 | S212: 0.57 | T212: 0.5570664171 | U212: 0.5444263036 | V212: 0.5320730005 | W212: 0.52 | X212: 0.52 | Y212: 0.52 | Z212: 0.52 | AA212: 0.52 | AB212: 0.52 | AC212: 0.52
C213: Case 3 - Higher Cost/Lower Price | H213: 0.57 | I213: 0.61 | J213: 0.61 | K213: 0.61 | N213: 0.57 | O213: 0.61 | P213: 0.61 | Q213: 0.61 | R213: 0.61 | S213: 0.61 | T213: 0.61 | U213: 0.61 | V213: 0.61 | W213: 0.61 | X213: 0.61 | Y213: 0.61 | Z213: 0.61 | AA213: 0.61 | AB213: 0.61 | AC213: 0.61
C214: Case 3 - Varying Cost | H214: 0.57 | I214: 0.65 | J214: 0.6 | K214: 0.63 | N214: 0.57 | O214: 0.65 | P214: 0.6371223351 | Q214: 0.6244997998 | R214: 0.6121273396 | S214: 0.6 | T214: 0.6073633407 | U214: 0.614817046 | V214: 0.6223622249 | W214: 0.63 | X214: 0.63 | Y214: 0.63 | Z214: 0.63 | AA214: 0.63 | AB214: 0.63 | AC214: 0.63
C216: =INDEX(C211:C214,$E$210) -> Base Case | N216: =INDEX(N211:N214,$E$210) -> 0.57 | O216: =INDEX(O211:O214,$E$210) -> 0.61 | P216: 0.6023575728 | Q216: 0.5948108943 | R216: 0.5873587649 | S216: 0.58 | T216: 0.58 | U216: 0.58 | V216: 0.58 | W216: 0.58 | X216: 0.58 | Y216: 0.58 | Z216: 0.58 | AA216: 0.58 | AB216: 0.58 | AC216: 0.58
B218: R&D as Perecent of Margin | E218: =F149 -> 1 | H218: 2017 | I218: 2018 | J218: =I218+4 -> 2022 | K218: =J218+4 -> 2026
C219: Base Case | H219: 0.11 | I219: 0.1 | J219: 0.09 | K219: 0.08 | N219: =LOOKUP(N$140,$218:$218,219:219) -> 0.11 | O219: 0.1 | P219: 0.1 | Q219: 0.1 | R219: 0.1 | S219: 0.09 | T219: 0.09 | U219: 0.09 | V219: 0.09 | W219: 0.08 | X219: 0.08 | Y219: 0.08 | Z219: 0.08 | AA219: 0.08 | AB219: 0.08 | AC219: 0.08
C220: Case 2 - Lower Spending | H220: 0.11 | I220: 0.09 | J220: 0.08 | K220: 0.07 | N220: 0.11 | O220: 0.09 | P220: 0.09 | Q220: 0.09 | R220: 0.09 | S220: 0.08 | T220: 0.08 | U220: 0.08 | V220: 0.08 | W220: 0.07 | X220: 0.07 | Y220: 0.07 | Z220: 0.07 | AA220: 0.07 | AB220: 0.07 | AC220: 0.07
C221: Case 3 - Higher Spending | H221: 0.11 | I221: 0.11 | J221: 0.11 | K221: 0.09 | N221: 0.11 | O221: 0.11 | P221: 0.11 | Q221: 0.11 | R221: 0.11 | S221: 0.11 | T221: 0.11 | U221: 0.11 | V221: 0.11 | W221: 0.09 | X221: 0.09 | Y221: 0.09 | Z221: 0.09 | AA221: 0.09 | AB221: 0.09 | AC221: 0.09
C222: Case 3 - Varying Cost | H222: 0.11 | I222: 0.11 | J222: 0.11 | K222: 0.11 | N222: 0.11 | O222: 0.11 | P222: 0.11 | Q222: 0.11 | R222: 0.11 | S222: 0.11 | T222: 0.11 | U222: 0.11 | V222: 0.11 | W222: 0.11 | X222: 0.11 | Y222: 0.11 | Z222: 0.11 | AA222: 0.11 | AB222: 0.11 | AC222: 0.11
C224: =INDEX(C219:C222,$E$218) -> Base Case | N224: =INDEX(N219:N222,$E$218) -> 0.11 | O224: 0.1 | P224: 0.1 | Q224: 0.1 | R224: 0.1 | S224: 0.09 | T224: 0.09 | U224: 0.09 | V224: 0.09 | W224: 0.08 | X224: 0.08 | Y224: 0.08 | Z224: 0.08 | AA224: 0.08 | AB224: 0.08 | AC224: 0.08
B226: Other SG&A as Percent of Revenue | E226: =F150 -> 1 | H226: 2017 | I226: 2018 | J226: =I226+4 -> 2022 | K226: =J226+4 -> 2026
C227: Base Case | H227: 0.2147 | I227: 0.2 | J227: 0.2 | K227: 0.2 | N227: =LOOKUP(N$140,$226:$226,227:227) -> 0.2147 | O227: =LOOKUP(O$140,$226:$226,227:227) -> 0.2 | P227: =LOOKUP(P$140,$210:$210,227:227) -> 0.2 | Q227: 0.2 | R227: 0.2 | S227: 0.2 | T227: 0.2 | U227: 0.2 | V227: 0.2 | W227: 0.2 | X227: 0.2 | Y227: 0.2 | Z227: 0.2 | AA227: 0.2 | AB227: 0.2 | AC227: 0.2
C228: Case 2 - Lower Cost | H228: 0.2147 | I228: 0.17 | J228: 0.17 | K228: 0.17 | N228: =LOOKUP(N$140,$226:$226,228:228) -> 0.2147 | O228: =LOOKUP(O$140,$210:$210,228:228) -> 0.17 | P228: 0.17 | Q228: 0.17 | R228: 0.17 | S228: 0.17 | T228: 0.17 | U228: 0.17 | V228: 0.17 | W228: 0.17 | X228: 0.17 | Y228: 0.17 | Z228: 0.17 | AA228: 0.17 | AB228: 0.17 | AC228: 0.17
... 177 more rows

Sheet Amazon DCF
A1: Contents
B2: Period | E2: =E72 -> 1638.193549 | H2: 1 | I2: 2 | J2: 3 | K2: 4 | L2: 5 | M2: 6 | N2: 7 | O2: 8 | P2: 9 | Q2: 10 | R2: 11 | S2: 12 | T2: 13 | U2: 14 | V2: 15 | W2: 16 | X2: 17 | Y2: 18 | Z2: 19 | AA2: 20
B3: Year | H3: =E9 -> 2018 | I3: =H3+1 -> 2019 | J3: =I3+1 -> 2020 | K3: 2021 | L3: 2022 | M3: 2023 | N3: 2024 | O3: 2025 | P3: 2026 | Q3: 2027 | R3: 2028 | S3: 2029 | T3: 2030 | U3: 2031 | V3: 2032 | W3: 2033 | X3: 2034 | Y3: 2035 | Z3: 2036 | AA3: 2037
B4: Holding Period | F4: =E9 -> 2018 | G4: =E10 -> 2030 | H4: =H3<=$G$4 -> TRUE | I4: =I3<=$G$4 -> TRUE | J4: TRUE | K4: TRUE | L4: TRUE | M4: TRUE | N4: TRUE | O4: TRUE | P4: TRUE | Q4: TRUE | R4: TRUE | S4: TRUE | T4: TRUE | U4: FALSE | V4: FALSE | W4: FALSE | X4: FALSE | Y4: FALSE | Z4: FALSE | AA4: FALSE
B5: Exit Period | G5: =E10 -> 2030 | H5: =H3=$G$5 -> FALSE | I5: =I3=$G$5 -> FALSE | J5: FALSE | K5: FALSE | L5: FALSE | M5: FALSE | N5: FALSE | O5: FALSE | P5: FALSE | Q5: FALSE | R5: FALSE | S5: FALSE | T5: TRUE | U5: FALSE | V5: FALSE | W5: FALSE | X5: FALSE | Y5: FALSE | Z5: FALSE | AA5: FALSE
G6: Growth Method | I6: =E2 -> 1638.193549
G7: EV/EBITDA Method | I7: =E82 -> 1324.724177
A8: Value Assumptions
B9: Valuation Start | E9: 2018
B10: Holding Period | E10: 2030
B12: WACC - Required Return | E12: 0.09
B13: Terminal Growth | E13: 0.04
B14: Terminal EV/EBITDA | E14: 14
B15: Terminal ROIC | E15: 0.15
B17: Depreciation Rate | E17: =LOOKUP(F17,'Amazon Model'!140:140,'Amazon Model'!172:172) -> 0.2396006656 | F17: 2016
B18: Depreciation Life | E18: =1/E17 -> 4.173611111
B19: Stable Cap Exp to Revenues | E19: 0
B20: Working Capital to EBITDA | E20: -1.6
B21: Working Capital growth Factor | E21: =(E13/(1+E13)) -> 0.03846153846
A23: Holding Period Free Cash Flow
B24: EBITDA | H24: =LOOKUP(H3,'Amazon Model'!4:4,'Amazon Model'!435:435) -> 20367086.31 | I24: =LOOKUP(I3,'Amazon Model'!4:4,'Amazon Model'!435:435) -> 26515889.89 | J24: =LOOKUP(J3,'Amazon Model'!4:4,'Amazon Model'!435:435) -> 33881871.26 | K24: =LOOKUP(K3,'Amazon Model'!4:4,'Amazon Model'!435:435) -> 42566502.16 | L24: =LOOKUP(L3,'Amazon Model'!4:4,'Amazon Model'!435:435) -> 57044727.88 | M24: =LOOKUP(M3,'Amazon Model'!4:4,'Amazon Model'!435:435) -> 65601437.07 | N24: =LOOKUP(N3,'Amazon Model'!4:4,'Amazon Model'!435:435) -> 73078384 | O24: =LOOKUP(O3,'Amazon Model'!4:4,'Amazon Model'!435:435) -> 79407157.71 | P24: =LOOKUP(P3,'Amazon Model'!4:4,'Amazon Model'!435:435) -> 91142630.43 | Q24: =LOOKUP(Q3,'Amazon Model'!4:4,'Amazon Model'!435:435) -> 95699761.95 | R24: =LOOKUP(R3,'Amazon Model'!4:4,'Amazon Model'!435:435) -> 100484750 | S24: =LOOKUP(S3,'Amazon Model'!4:4,'Amazon Model'!435:435) -> 105508987.6 | T24: =LOOKUP(T3,'Amazon Model'!4:4,'Amazon Model'!435:435) -> 110784436.9 | U24: =LOOKUP(U3,'Amazon Model'!4:4,'Amazon Model'!435:435) -> 116323658.8 | V24: =LOOKUP(V3,'Amazon Model'!4:4,'Amazon Model'!435:435) -> 122139841.7 | W24: =LOOKUP(W3,'Amazon Model'!4:4,'Amazon Model'!435:435) -> 122139841.7 | X24: =LOOKUP(X3,'Amazon Model'!4:4,'Amazon Model'!435:435) -> 122139841.7 | Y24: =LOOKUP(Y3,'Amazon Model'!4:4,'Amazon Model'!435:435) -> 122139841.7 | Z24: =LOOKUP(Z3,'Amazon Model'!4:4,'Amazon Model'!435:435) -> 122139841.7 | AA24: =LOOKUP(AA3,'Amazon Model'!4:4,'Amazon Model'!435:435) -> 122139841.7
B25: Less: Depreciation Expense | H25: =LOOKUP(H$3,'Amazon Model'!4:4,'Amazon Model'!352:352)+LOOKUP(H$3,'Amazon Model'!$4:$4,'Amazon Model'!353:353) -> 8779510.13 | I25: =LOOKUP(I$3,'Amazon Model'!4:4,'Amazon Model'!352:352)+LOOKUP(I$3,'Amazon Model'!$4:$4,'Amazon Model'!353:353) -> 8978634.726 | J25: =LOOKUP(J$3,'Amazon Model'!4:4,'Amazon Model'!352:352)+LOOKUP(J$3,'Amazon Model'!$4:$4,'Amazon Model'!353:353) -> 11009480.43 | K25: =LOOKUP(K$3,'Amazon Model'!4:4,'Amazon Model'!352:352)+LOOKUP(K$3,'Amazon Model'!$4:$4,'Amazon Model'!353:353) -> 13332856.34 | L25: =LOOKUP(L$3,'Amazon Model'!4:4,'Amazon Model'!352:352)+LOOKUP(L$3,'Amazon Model'!$4:$4,'Amazon Model'!353:353) -> 15960035.13 | M25: =LOOKUP(M$3,'Amazon Model'!4:4,'Amazon Model'!352:352)+LOOKUP(M$3,'Amazon Model'!$4:$4,'Amazon Model'!353:353) -> 21091824.62 | N25: =LOOKUP(N$3,'Amazon Model'!4:4,'Amazon Model'!352:352)+LOOKUP(N$3,'Amazon Model'!$4:$4,'Amazon Model'!353:353) -> 26316858.81 | O25: =LOOKUP(O$3,'Amazon Model'!4:4,'Amazon Model'!352:352)+LOOKUP(O$3,'Amazon Model'!$4:$4,'Amazon Model'!353:353) -> 31446015.31 | P25: =LOOKUP(P$3,'Amazon Model'!4:4,'Amazon Model'!352:352)+LOOKUP(P$3,'Amazon Model'!$4:$4,'Amazon Model'!353:353) -> 36325734.43 | Q25: =LOOKUP(Q$3,'Amazon Model'!4:4,'Amazon Model'!352:352)+LOOKUP(Q$3,'Amazon Model'!$4:$4,'Amazon Model'!353:353) -> 39219381.79 | R25: =LOOKUP(R$3,'Amazon Model'!4:4,'Amazon Model'!352:352)+LOOKUP(R$3,'Amazon Model'!$4:$4,'Amazon Model'!353:353) -> 42014612.34 | S25: =LOOKUP(S$3,'Amazon Model'!4:4,'Amazon Model'!352:352)+LOOKUP(S$3,'Amazon Model'!$4:$4,'Amazon Model'!353:353) -> 44765798.13 | T25: =LOOKUP(T$3,'Amazon Model'!4:4,'Amazon Model'!352:352)+LOOKUP(T$3,'Amazon Model'!$4:$4,'Amazon Model'!353:353) -> 47515290.31 | U25: =LOOKUP(U$3,'Amazon Model'!4:4,'Amazon Model'!352:352)+LOOKUP(U$3,'Amazon Model'!$4:$4,'Amazon Model'!353:353) -> 50296498.19 | V25: =LOOKUP(V$3,'Amazon Model'!4:4,'Amazon Model'!352:352)+LOOKUP(V$3,'Amazon Model'!$4:$4,'Amazon Model'!353:353) -> 53136202.53 | W25: =LOOKUP(W$3,'Amazon Model'!4:4,'Amazon Model'!352:352)+LOOKUP(W$3,'Amazon Model'!$4:$4,'Amazon Model'!353:353) -> 53136202.53 | X25: =LOOKUP(X$3,'Amazon Model'!4:4,'Amazon Model'!352:352)+LOOKUP(X$3,'Amazon Model'!$4:$4,'Amazon Model'!353:353) -> 53136202.53 | Y25: =LOOKUP(Y$3,'Amazon Model'!4:4,'Amazon Model'!352:352)+LOOKUP(Y$3,'Amazon Model'!$4:$4,'Amazon Model'!353:353) -> 53136202.53 | Z25: =LOOKUP(Z$3,'Amazon Model'!4:4,'Amazon Model'!352:352)+LOOKUP(Z$3,'Amazon Model'!$4:$4,'Amazon Model'!353:353) -> 53136202.53 | AA25: =LOOKUP(AA$3,'Amazon Model'!4:4,'Amazon Model'!352:352)+LOOKUP(AA$3,'Amazon Model'!$4:$4,'Amazon Model'!353:353) -> 53136202.53
B26: EBIT | H26: =H24-H25 -> 11587576.18 | I26: =I24-I25 -> 17537255.17 | J26: 22872390.83 | K26: 29233645.82 | L26: 41084692.75 | M26: 44509612.44 | N26: 46761525.19 | O26: 47961142.39 | P26: 54816896 | Q26: 56480380.16 | R26: 58470137.71 | S26: 60743189.42 | T26: 63269146.61 | U26: 66027160.59 | V26: 69003639.19 | W26: 69003639.19 | X26: 69003639.19 | Y26: 69003639.19 | Z26: 69003639.19 | AA26: 69003639.19
B27: Tax Rate | H27: =LOOKUP(H3,'Amazon Model'!140:140,'Amazon Model'!190:190) -> 0.3674203494 | I27: =LOOKUP(I3,'Amazon Model'!140:140,'Amazon Model'!190:190) -> 0.3674203494 | J27: =LOOKUP(J3,'Amazon Model'!140:140,'Amazon Model'!190:190) -> 0.3674203494 | K27: =LOOKUP(K3,'Amazon Model'!140:140,'Amazon Model'!190:190) -> 0.3674203494 | L27: =LOOKUP(L3,'Amazon Model'!140:140,'Amazon Model'!190:190) -> 0.3674203494 | M27: =LOOKUP(M3,'Amazon Model'!140:140,'Amazon Model'!190:190) -> 0.3674203494 | N27: =LOOKUP(N3,'Amazon Model'!140:140,'Amazon Model'!190:190) -> 0.3674203494 | O27: =LOOKUP(O3,'Amazon Model'!140:140,'Amazon Model'!190:190) -> 0.3674203494 | P27: =LOOKUP(P3,'Amazon Model'!140:140,'Amazon Model'!190:190) -> 0.3674203494 | Q27: =LOOKUP(Q3,'Amazon Model'!140:140,'Amazon Model'!190:190) -> 0.3674203494 | R27: =LOOKUP(R3,'Amazon Model'!140:140,'Amazon Model'!190:190) -> 0.3674203494 | S27: =LOOKUP(S3,'Amazon Model'!140:140,'Amazon Model'!190:190) -> 0.3674203494 | T27: =LOOKUP(T3,'Amazon Model'!140:140,'Amazon Model'!190:190) -> 0.3674203494 | U27: =LOOKUP(U3,'Amazon Model'!140:140,'Amazon Model'!190:190) -> 0.3674203494 | V27: =LOOKUP(V3,'Amazon Model'!140:140,'Amazon Model'!190:190) -> 0.3674203494 | W27: =LOOKUP(W3,'Amazon Model'!140:140,'Amazon Model'!190:190) -> 0.3674203494 | X27: =LOOKUP(X3,'Amazon Model'!140:140,'Amazon Model'!190:190) -> 0.3674203494 | Y27: =LOOKUP(Y3,'Amazon Model'!140:140,'Amazon Model'!190:190) -> 0.3674203494 | Z27: =LOOKUP(Z3,'Amazon Model'!140:140,'Amazon Model'!190:190) -> 0.3674203494 | AA27: =LOOKUP(AA3,'Amazon Model'!140:140,'Amazon Model'!190:190) -> 0.3674203494
B28: Taxes | H28: =H26*H27 -> 4257511.289 | I28: =I26*I27 -> 6443544.421 | J28: 8403781.831 | K28: 10741036.36 | L28: 15095352.17 | M28: 16353737.36 | N28: 17181135.93 | O28: 17621899.7 | P28: 20140843.08 | Q28: 20752041.01 | R28: 21483118.43 | S28: 22318283.88 | T28: 23246371.96 | U28: 24259722.42 | V28: 25353341.22 | W28: 25353341.22 | X28: 25353341.22 | Y28: 25353341.22 | Z28: 25353341.22 | AA28: 25353341.22
B30: EBITDA | H30: =H24 -> 20367086.31 | I30: =I24 -> 26515889.89 | J30: 33881871.26 | K30: 42566502.16 | L30: 57044727.88 | M30: 65601437.07 | N30: 73078384 | O30: 79407157.71 | P30: 91142630.43 | Q30: 95699761.95 | R30: 100484750 | S30: 105508987.6 | T30: 110784436.9 | U30: 116323658.8 | V30: 122139841.7 | W30: 122139841.7 | X30: 122139841.7 | Y30: 122139841.7 | Z30: 122139841.7 | AA30: 122139841.7
B31: Less: WC Changes | H31: =LOOKUP(H$3,'Amazon Model'!$4:$4,'Amazon Model'!374:374) -> -4126220.819 | I31: =LOOKUP(I$3,'Amazon Model'!$4:$4,'Amazon Model'!374:374) -> -4115254.114 | J31: =LOOKUP(J$3,'Amazon Model'!$4:$4,'Amazon Model'!374:374) -> -4580626.962 | K31: =LOOKUP(K$3,'Amazon Model'!$4:$4,'Amazon Model'!374:374) -> -5039521.948 | L31: =LOOKUP(L$3,'Amazon Model'!$4:$4,'Amazon Model'!374:374) -> -4694000.141 | M31: =LOOKUP(M$3,'Amazon Model'!$4:$4,'Amazon Model'!374:374) -> -5897547.252 | N31: =LOOKUP(N$3,'Amazon Model'!$4:$4,'Amazon Model'!374:374) -> -5153341.889 | O31: =LOOKUP(O$3,'Amazon Model'!$4:$4,'Amazon Model'!374:374) -> -4361985.567 | P31: =LOOKUP(P$3,'Amazon Model'!$4:$4,'Amazon Model'!374:374) -> -2429593.266 | Q31: =LOOKUP(Q$3,'Amazon Model'!$4:$4,'Amazon Model'!374:374) -> -2857972.483 | R31: =LOOKUP(R$3,'Amazon Model'!$4:$4,'Amazon Model'!374:374) -> -3000871.107 | S31: =LOOKUP(S$3,'Amazon Model'!$4:$4,'Amazon Model'!374:374) -> -3150914.662 | T31: =LOOKUP(T$3,'Amazon Model'!$4:$4,'Amazon Model'!374:374) -> -3308460.395 | U31: =LOOKUP(U$3,'Amazon Model'!$4:$4,'Amazon Model'!374:374) -> -3473883.415 | V31: =LOOKUP(V$3,'Amazon Model'!$4:$4,'Amazon Model'!374:374) -> -3647577.586 | W31: =LOOKUP(W$3,'Amazon Model'!$4:$4,'Amazon Model'!374:374) -> -3647577.586 | X31: =LOOKUP(X$3,'Amazon Model'!$4:$4,'Amazon Model'!374:374) -> -3647577.586 | Y31: =LOOKUP(Y$3,'Amazon Model'!$4:$4,'Amazon Model'!374:374) -> -3647577.586 | Z31: =LOOKUP(Z$3,'Amazon Model'!$4:$4,'Amazon Model'!374:374) -> -3647577.586 | AA31: =LOOKUP(AA$3,'Amazon Model'!$4:$4,'Amazon Model'!374:374) -> -3647577.586
B32: Less: Capital Expenditures and Acquistion | H32: =LOOKUP(H$3,'Amazon Model'!$4:$4,'Amazon Model'!379:379)+LOOKUP(H$3,'Amazon Model'!$4:$4,'Amazon Model'!380:380) -> 15388465.21 | I32: =LOOKUP(I$3,'Amazon Model'!$4:$4,'Amazon Model'!379:379)+LOOKUP(I$3,'Amazon Model'!$4:$4,'Amazon Model'!380:380) -> 18466158.25 | J32: =LOOKUP(J$3,'Amazon Model'!$4:$4,'Amazon Model'!379:379)+LOOKUP(J$3,'Amazon Model'!$4:$4,'Amazon Model'!380:380) -> 21903097.57 | K32: =LOOKUP(K$3,'Amazon Model'!$4:$4,'Amazon Model'!379:379)+LOOKUP(K$3,'Amazon Model'!$4:$4,'Amazon Model'!380:380) -> 25696825.36 | L32: =LOOKUP(L$3,'Amazon Model'!$4:$4,'Amazon Model'!379:379)+LOOKUP(L$3,'Amazon Model'!$4:$4,'Amazon Model'!380:380) -> 38614892.72 | M32: =LOOKUP(M$3,'Amazon Model'!$4:$4,'Amazon Model'!379:379)+LOOKUP(M$3,'Amazon Model'!$4:$4,'Amazon Model'!380:380) -> 44407126.63 | N32: =LOOKUP(N$3,'Amazon Model'!$4:$4,'Amazon Model'!379:379)+LOOKUP(N$3,'Amazon Model'!$4:$4,'Amazon Model'!380:380) -> 49468444.56 | O32: =LOOKUP(O$3,'Amazon Model'!$4:$4,'Amazon Model'!379:379)+LOOKUP(O$3,'Amazon Model'!$4:$4,'Amazon Model'!380:380) -> 53752537.52 | P32: =LOOKUP(P$3,'Amazon Model'!$4:$4,'Amazon Model'!379:379)+LOOKUP(P$3,'Amazon Model'!$4:$4,'Amazon Model'!380:380) -> 50779465.52 | Q32: =LOOKUP(Q$3,'Amazon Model'!$4:$4,'Amazon Model'!379:379)+LOOKUP(Q$3,'Amazon Model'!$4:$4,'Amazon Model'!380:380) -> 53318438.8 | R32: =LOOKUP(R$3,'Amazon Model'!$4:$4,'Amazon Model'!379:379)+LOOKUP(R$3,'Amazon Model'!$4:$4,'Amazon Model'!380:380) -> 55984360.74 | S32: =LOOKUP(S$3,'Amazon Model'!$4:$4,'Amazon Model'!379:379)+LOOKUP(S$3,'Amazon Model'!$4:$4,'Amazon Model'!380:380) -> 58783578.78 | T32: =LOOKUP(T$3,'Amazon Model'!$4:$4,'Amazon Model'!379:379)+LOOKUP(T$3,'Amazon Model'!$4:$4,'Amazon Model'!380:380) -> 61722757.72 | U32: =LOOKUP(U$3,'Amazon Model'!$4:$4,'Amazon Model'!379:379)+LOOKUP(U$3,'Amazon Model'!$4:$4,'Amazon Model'!380:380) -> 64808895.6 | V32: =LOOKUP(V$3,'Amazon Model'!$4:$4,'Amazon Model'!379:379)+LOOKUP(V$3,'Amazon Model'!$4:$4,'Amazon Model'!380:380) -> 68049340.38 | W32: =LOOKUP(W$3,'Amazon Model'!$4:$4,'Amazon Model'!379:379)+LOOKUP(W$3,'Amazon Model'!$4:$4,'Amazon Model'!380:380) -> 68049340.38 | X32: =LOOKUP(X$3,'Amazon Model'!$4:$4,'Amazon Model'!379:379)+LOOKUP(X$3,'Amazon Model'!$4:$4,'Amazon Model'!380:380) -> 68049340.38 | Y32: =LOOKUP(Y$3,'Amazon Model'!$4:$4,'Amazon Model'!379:379)+LOOKUP(Y$3,'Amazon Model'!$4:$4,'Amazon Model'!380:380) -> 68049340.38 | Z32: =LOOKUP(Z$3,'Amazon Model'!$4:$4,'Amazon Model'!379:379)+LOOKUP(Z$3,'Amazon Model'!$4:$4,'Amazon Model'!380:380) -> 68049340.38 | AA32: =LOOKUP(AA$3,'Amazon Model'!$4:$4,'Amazon Model'!379:379)+LOOKUP(AA$3,'Amazon Model'!$4:$4,'Amazon Model'!380:380) -> 68049340.38
B33: Less: Taxes | H33: =H28 -> 4257511.289 | I33: =I28 -> 6443544.421 | J33: 8403781.831 | K33: 10741036.36 | L33: 15095352.17 | M33: 16353737.36 | N33: 17181135.93 | O33: 17621899.7 | P33: 20140843.08 | Q33: 20752041.01 | R33: 21483118.43 | S33: 22318283.88 | T33: 23246371.96 | U33: 24259722.42 | V33: 25353341.22 | W33: 25353341.22 | X33: 25353341.22 | Y33: 25353341.22 | Z33: 25353341.22 | AA33: 25353341.22
C34: Free Cash Flow | H34: =H30-H31-H32-H33 -> 4847330.628 | I34: =I30-I31-I32-I33 -> 5721441.33 | J34: 8155618.815 | K34: 11168162.38 | L34: 8028483.136 | M34: 10738120.33 | N34: 11582145.41 | O34: 12394706.05 | P34: 22651915.09 | Q34: 24487254.62 | R34: 26018141.98 | S34: 27558039.55 | T34: 29123767.65 | U34: 30728924.17 | V34: 32384737.69 | W34: 32384737.69 | X34: 32384737.69 | Y34: 32384737.69 | Z34: 32384737.69 | AA34: 32384737.69
C36: Free Cash Flow over Explicit Period | H36: =IF(H4,H34) -> 4847330.628 | I36: =IF(I4,I34) -> 5721441.33 | J36: 8155618.815 | K36: 11168162.38 | L36: 8028483.136 | M36: 10738120.33 | N36: 11582145.41 | O36: 12394706.05 | P36: 22651915.09 | Q36: 24487254.62 | R36: 26018141.98 | S36: 27558039.55 | T36: 29123767.65 | U36: FALSE | V36: FALSE | W36: FALSE | X36: FALSE | Y36: FALSE | Z36: FALSE | AA36: FALSE
C37: NPV of Explicit Cash Fllow | E37: =NPV(F37,36:36) -> 97802753.4 | F37: =E12 -> 0.09
C38: Including 1/2 year adjustment | E38: =E37*(1+F37)^0.5 -> 102109072.3
A40: Terminal Cash Flow
B41: Invested Capital | H41: =LOOKUP(H$3,'Amazon Model'!$4:$4,'Amazon Model'!429:429) -> 33267184.82 | I41: =LOOKUP(I$3,'Amazon Model'!$4:$4,'Amazon Model'!429:429) -> 41807667.66 | J41: =LOOKUP(J$3,'Amazon Model'!$4:$4,'Amazon Model'!429:429) -> 51658683.62 | K41: =LOOKUP(K$3,'Amazon Model'!$4:$4,'Amazon Model'!429:429) -> 62888438.7 | L41: =LOOKUP(L$3,'Amazon Model'!$4:$4,'Amazon Model'!429:429) -> 85113073.75 | M41: =LOOKUP(M$3,'Amazon Model'!$4:$4,'Amazon Model'!429:429) -> 107138287.3 | N41: =LOOKUP(N$3,'Amazon Model'!$4:$4,'Amazon Model'!429:429) -> 129162579.5 | O41: =LOOKUP(O$3,'Amazon Model'!$4:$4,'Amazon Model'!429:429) -> 150514917.4 | P41: =LOOKUP(P$3,'Amazon Model'!$4:$4,'Amazon Model'!429:429) -> 165352670.1 | Q41: =LOOKUP(Q$3,'Amazon Model'!$4:$4,'Amazon Model'!429:429) -> 178872320.4 | R41: =LOOKUP(R$3,'Amazon Model'!$4:$4,'Amazon Model'!429:429) -> 192233691.7 | S41: =LOOKUP(S$3,'Amazon Model'!$4:$4,'Amazon Model'!429:429) -> 205612676.5 | T41: =LOOKUP(T$3,'Amazon Model'!$4:$4,'Amazon Model'!429:429) -> 219149408.2 | U41: =LOOKUP(U$3,'Amazon Model'!$4:$4,'Amazon Model'!429:429) -> 232957533.1 | V41: =LOOKUP(V$3,'Amazon Model'!$4:$4,'Amazon Model'!429:429) -> 247131184.8 | W41: =LOOKUP(W$3,'Amazon Model'!$4:$4,'Amazon Model'!429:429) -> 247131184.8 | X41: =LOOKUP(X$3,'Amazon Model'!$4:$4,'Amazon Model'!429:429) -> 247131184.8 | Y41: =LOOKUP(Y$3,'Amazon Model'!$4:$4,'Amazon Model'!429:429) -> 247131184.8 | Z41: =LOOKUP(Z$3,'Amazon Model'!$4:$4,'Amazon Model'!429:429) -> 247131184.8 | AA41: =LOOKUP(AA$3,'Amazon Model'!$4:$4,'Amazon Model'!429:429) -> 247131184.8
B42: Stable ROIC | E42: =E15 -> 0.15 | H42: =$E$42 -> 0.15 | I42: =$E$42 -> 0.15 | J42: 0.15 | K42: 0.15 | L42: 0.15 | M42: 0.15 | N42: 0.15 | O42: 0.15 | P42: 0.15 | Q42: 0.15 | R42: 0.15 | S42: 0.15 | T42: 0.15 | U42: 0.15 | V42: 0.15 | W42: 0.15 | X42: 0.15 | Y42: 0.15 | Z42: 0.15 | AA42: 0.15
B43: NOPAT | H43: =H42*H41 -> 4990077.723 | I43: =I42*I41 -> 6271150.149 | J43: 7748802.542 | K43: 9433265.805 | L43: 12766961.06 | M43: 16070743.09 | N43: 19374386.93 | O43: 22577237.61 | P43: 24802900.52 | Q43: 26830848.06 | R43: 28835053.76 | S43: 30841901.47 | T43: 32872411.23 | U43: 34943629.97 | V43: 37069677.73 | W43: 37069677.73 | X43: 37069677.73 | Y43: 37069677.73 | Z43: 37069677.73 | AA43: 37069677.73
B44: EBIT = NOPAT/(1-t) | H44: =H43/(1-H27) -> 7888457.554 | I44: =I43/(1-I27) -> 9913613.477 | J44: 12249528.63 | K44: 14912376.33 | L44: 20182377.11 | M44: 25405090.22 | N44: 30627584.86 | O44: 35690742.8 | P44: 39209134.37 | Q44: 42414971.83 | R44: 45583277.51 | S44: 48755759.76 | T44: 51965647.64 | U44: 55239889.45 | V44: 58600806.54 | W44: 58600806.54 | X44: 58600806.54 | Y44: 58600806.54 | Z44: 58600806.54 | AA44: 58600806.54
B45: EBITDA = EBIT + Deprecaition | H45: =H44+H25 -> 16667967.68 | I45: =I44+I25 -> 18892248.2 | J45: 23259009.06 | K45: 28245232.66 | L45: 36142412.25 | M45: 46496914.84 | N45: 56944443.67 | O45: 67136758.11 | P45: 75534868.8 | Q45: 81634353.62 | R45: 87597889.85 | S45: 93521557.89 | T45: 99480937.96 | U45: 105536387.6 | V45: 111737009.1 | W45: 111737009.1 | X45: 111737009.1 | Y45: 111737009.1 | Z45: 111737009.1 | AA45: 111737009.1
B46: Stble EBITDA Applied | H46: =H30 -> 20367086.31 | I46: =I30 -> 26515889.89 | J46: 33881871.26 | K46: 42566502.16 | L46: 57044727.88 | M46: 65601437.07 | N46: 73078384 | O46: 79407157.71 | P46: 91142630.43 | Q46: 95699761.95 | R46: 100484750 | S46: 105508987.6 | T46: 110784436.9 | U46: 116323658.8 | V46: 122139841.7 | W46: 122139841.7 | X46: 122139841.7 | Y46: 122139841.7 | Z46: 122139841.7 | AA46: 122139841.7
B47: Stable Taxes | H47: =H44*H27 -> 2898379.831 | I47: =I44*I27 -> 3642463.328 | J47: 4500726.091 | K47: 5479110.521 | L47: 7415416.052 | M47: 9334347.126 | N47: 11253197.93 | O47: 13113505.19 | P47: 14406233.85 | Q47: 15584123.77 | R47: 16748223.75 | S47: 17913858.29 | T47: 19093236.42 | U47: 20296259.48 | V47: 21531128.82 | W47: 21531128.82 | X47: 21531128.82 | Y47: 21531128.82 | Z47: 21531128.82 | AA47: 21531128.82
B49: Stable Cap Exp to Deprecation | E49: =E19 -> 0 | H49: =$E$49 -> 0 | I49: =$E$49 -> 0 | J49: 0 | K49: 0 | L49: 0 | M49: 0 | N49: 0 | O49: 0 | P49: 0 | Q49: 0 | R49: 0 | S49: 0 | T49: 0 | U49: 0 | V49: 0 | W49: 0 | X49: 0 | Y49: 0 | Z49: 0 | AA49: 0
B50: Depreciation | H50: =H25 -> 8779510.13 | I50: =I25 -> 8978634.726 | J50: 11009480.43 | K50: 13332856.34 | L50: 15960035.13 | M50: 21091824.62 | N50: 26316858.81 | O50: 31446015.31 | P50: 36325734.43 | Q50: 39219381.79 | R50: 42014612.34 | S50: 44765798.13 | T50: 47515290.31 | U50: 50296498.19 | V50: 53136202.53 | W50: 53136202.53 | X50: 53136202.53 | Y50: 53136202.53 | Z50: 53136202.53 | AA50: 53136202.53
B51: Stable Captial Expenditures | H51: =H49*H50 -> 0 | I51: =I49*I50 -> 0 | J51: 0 | K51: 0 | L51: 0 | M51: 0 | N51: 0 | O51: 0 | P51: 0 | Q51: 0 | R51: 0 | S51: 0 | T51: 0 | U51: 0 | V51: 0 | W51: 0 | X51: 0 | Y51: 0 | Z51: 0 | AA51: 0
B53: Working Captial to EBITDA | E53: =E20 -> -1.6 | H53: =$E$53 -> -1.6 | I53: =$E$53 -> -1.6 | J53: -1.6 | K53: -1.6 | L53: -1.6 | M53: -1.6 | N53: -1.6 | O53: -1.6 | P53: -1.6 | Q53: -1.6 | R53: -1.6 | S53: -1.6 | T53: -1.6 | U53: -1.6 | V53: -1.6 | W53: -1.6 | X53: -1.6 | Y53: -1.6 | Z53: -1.6 | AA53: -1.6
B54: Stable Change in Working Capital | E54: =E21 -> 0.03846153846 | H54: =H53*H45*$E$54 -> -1025721.088 | I54: =I53*I45*$E$54 -> -1162599.889 | J54: -1431323.635 | K54: -1738168.164 | L54: -2224148.446 | M54: -2861348.606 | N54: -3504273.457 | O54: -4131492.807 | P54: -4648299.618 | Q54: -5023652.531 | R54: -5390639.375 | S54: -5755172.793 | T54: -6121903.874 | U54: -6494546.931 | V54: -6876123.635 | W54: -6876123.635 | X54: -6876123.635 | Y54: -6876123.635 | Z54: -6876123.635 | AA54: -6876123.635
B56: EBITDA | H56: =IF(H5,H46) -> FALSE | I56: =IF(I5,I46) -> FALSE | J56: FALSE | K56: FALSE | L56: FALSE | M56: FALSE | N56: FALSE | O56: FALSE | P56: FALSE | Q56: FALSE | R56: FALSE | S56: FALSE | T56: 110784436.9 | U56: FALSE | V56: FALSE | W56: FALSE | X56: FALSE | Y56: FALSE | Z56: FALSE | AA56: FALSE
B57: Less: WC Change | H57: =IF(H5,H54) -> FALSE | I57: =IF(I5,I54) -> FALSE | J57: FALSE | K57: FALSE | L57: FALSE | M57: FALSE | N57: FALSE | O57: FALSE | P57: FALSE | Q57: FALSE | R57: FALSE | S57: FALSE | T57: -6121903.874 | U57: FALSE | V57: FALSE | W57: FALSE | X57: FALSE | Y57: FALSE | Z57: FALSE | AA57: FALSE
B58: Less: Capital Expenditures | H58: =IF(H5,H51) -> FALSE | I58: =IF(I5,I51) -> FALSE | J58: FALSE | K58: FALSE | L58: FALSE | M58: FALSE | N58: FALSE | O58: FALSE | P58: FALSE | Q58: FALSE | R58: FALSE | S58: FALSE | T58: 0 | U58: FALSE | V58: FALSE | W58: FALSE | X58: FALSE | Y58: FALSE | Z58: FALSE | AA58: FALSE
B59: Less: Taxes | H59: =IF(H5,H47) -> FALSE | I59: =IF(I5,I47) -> FALSE | J59: FALSE | K59: FALSE | L59: FALSE | M59: FALSE | N59: FALSE | O59: FALSE | P59: FALSE | Q59: FALSE | R59: FALSE | S59: FALSE | T59: 19093236.42 | U59: FALSE | V59: FALSE | W59: FALSE | X59: FALSE | Y59: FALSE | Z59: FALSE | AA59: FALSE
C60: Stable Cash Flow | H60: =H56-H57-H58-H59 -> 0 | I60: =I56-I57-I58-I59 -> 0 | J60: 0 | K60: 0 | L60: 0 | M60: 0 | N60: 0 | O60: 0 | P60: 0 | Q60: 0 | R60: 0 | S60: 0 | T60: 97813104.39 | U60: 0 | V60: 0 | W60: 0 | X60: 0 | Y60: 0 | Z60: 0 | AA60: 0
A62: Terminal Value - Growth Method
B63: Growth Method ==> (1+g)/(WACC-g) | E63: =E13 -> 0.04 | F63: =E12 -> 0.09 | H63: =(1+$E$63)/($F$63-$E$63) -> 20.8 | I63: =(1+$E$63)/($F$63-$E$63) -> 20.8 | J63: 20.8 | K63: 20.8 | L63: 20.8 | M63: 20.8 | N63: 20.8 | O63: 20.8 | P63: 20.8 | Q63: 20.8 | R63: 20.8 | S63: 20.8 | T63: 20.8 | U63: 20.8 | V63: 20.8 | W63: 20.8 | X63: 20.8 | Y63: 20.8 | Z63: 20.8 | AA63: 20.8
B64: Terminal Value | H64: =H60*H63 -> 0 | I64: =I60*I63 -> 0 | J64: 0 | K64: 0 | L64: 0 | M64: 0 | N64: 0 | O64: 0 | P64: 0 | Q64: 0 | R64: 0 | S64: 0 | T64: 2034512571 | U64: 0 | V64: 0 | W64: 0 | X64: 0 | Y64: 0 | Z64: 0 | AA64: 0
B65: PV of Terminal Value | E65: =NPV(F65,H64:AA64)*(1+E63)^0.5 -> 676756715.7 | F65: =F63 -> 0.09
B66: Add: NPV of Explicit Cash Flow | E66: =E38 -> 102109072.3
B67: Total Enterprise Value | E67: =E65+E66 -> 778865788
B69: Less: Net Debt | E69: =LOOKUP(E9-1,'Amazon Model'!$4:$4,'Amazon Model'!430:430) -> 2362045.555
B70: Equity Value | E70: =E67-E69 -> 776503742.4
B71: Shares | E71: =LOOKUP(E9-1,'Amazon Model'!4:4,'Amazon Model'!365:365) -> 474000
B72: Equity Value/Share | E72: =E70/E71 -> 1638.193549
B74: EV/EBITDA Method ==> EV/EBITDA | E74: =E14 -> 14 | H74: =$E$74*H46*H5 -> 0 | I74: =$E$74*I46*I5 -> 0 | J74: 0 | K74: 0 | L74: 0 | M74: 0 | N74: 0 | O74: 0 | P74: 0 | Q74: 0 | R74: 0 | S74: 0 | T74: 1550982117 | U74: 0 | V74: 0 | W74: 0 | X74: 0 | Y74: 0 | Z74: 0 | AA74: 0
B75: PV of Terminal Value | E75: =NPV(F75,H74:AA74)*(1+F75)^0.5 -> 528172233.4 | F75: =F65 -> 0.09
B76: Add: NPV of Explicit Cash Flow | E76: =E66 -> 102109072.3
B77: Total Enterprise Value | E77: =E75+E76 -> 630281305.7
B79: Less: Net Debt | E79: =E69 -> 2362045.555
B80: Equity Value | E80: =E77-E79 -> 627919260.1
B81: Shares | E81: =E71 -> 474000
B82: Equity Value/Share | E82: =E80/E81 -> 1324.724177
B84: Value Driver Formula: Invested Capital * ROIC *(1-g/ROIC)/(WACC-g)
B85: Invested Capital | H85: =H41 -> 33267184.82 | I85: =I41 -> 41807667.66 | J85: 51658683.62 | K85: 62888438.7 | L85: 85113073.75 | M85: 107138287.3 | N85: 129162579.5 | O85: 150514917.4 | P85: 165352670.1 | Q85: 178872320.4 | R85: 192233691.7 | S85: 205612676.5 | T85: 219149408.2 | U85: 232957533.1 | V85: 247131184.8 | W85: 247131184.8 | X85: 247131184.8 | Y85: 247131184.8 | Z85: 247131184.8 | AA85: 247131184.8
B86: ROIC Earned | H86: =LOOKUP(H3,'Amazon Model'!4:4,'Amazon Model'!447:447) -> 0.3831207491 | I86: =LOOKUP(I3,'Amazon Model'!4:4,'Amazon Model'!447:447) -> 0.4671938628 | J86: =LOOKUP(J3,'Amazon Model'!4:4,'Amazon Model'!447:447) -> 0.4894251357 | K86: =LOOKUP(K3,'Amazon Model'!4:4,'Amazon Model'!447:447) -> 0.5104213048 | L86: =LOOKUP(L3,'Amazon Model'!4:4,'Amazon Model'!447:447) -> 0.5551928771 | M86: =LOOKUP(M3,'Amazon Model'!4:4,'Amazon Model'!447:447) -> 0.463035603 | N86: =LOOKUP(N3,'Amazon Model'!4:4,'Amazon Model'!447:447) -> 0.3957795485 | O86: =LOOKUP(O3,'Amazon Model'!4:4,'Amazon Model'!447:447) -> 0.3429746256 | P86: =LOOKUP(P3,'Amazon Model'!4:4,'Amazon Model'!447:447) -> 0.3470878189 | Q86: =LOOKUP(Q3,'Amazon Model'!4:4,'Amazon Model'!447:447) -> 0.328159673 | R86: =LOOKUP(R3,'Amazon Model'!4:4,'Amazon Model'!447:447) -> 0.3151128562 | S86: =LOOKUP(S3,'Amazon Model'!4:4,'Amazon Model'!447:447) -> 0.3053600297 | T86: =LOOKUP(T3,'Amazon Model'!4:4,'Amazon Model'!447:447) -> 0.2979039274 | U86: =LOOKUP(U3,'Amazon Model'!4:4,'Amazon Model'!447:447) -> 0.2920864714 | V86: =LOOKUP(V3,'Amazon Model'!4:4,'Amazon Model'!447:447) -> 0.2874620319 | W86: =LOOKUP(W3,'Amazon Model'!4:4,'Amazon Model'!447:447) -> 0.2874620319 | X86: =LOOKUP(X3,'Amazon Model'!4:4,'Amazon Model'!447:447) -> 0.2874620319 | Y86: =LOOKUP(Y3,'Amazon Model'!4:4,'Amazon Model'!447:447) -> 0.2874620319 | Z86: =LOOKUP(Z3,'Amazon Model'!4:4,'Amazon Model'!447:447) -> 0.2874620319 | AA86: =LOOKUP(AA3,'Amazon Model'!4:4,'Amazon Model'!447:447) -> 0.2874620319
B87: NOPAT | H87: =H43 -> 4990077.723 | I87: =I43 -> 6271150.149 | J87: 7748802.542 | K87: 9433265.805 | L87: 12766961.06 | M87: 16070743.09 | N87: 19374386.93 | O87: 22577237.61 | P87: 24802900.52 | Q87: 26830848.06 | R87: 28835053.76 | S87: 30841901.47 | T87: 32872411.23 | U87: 34943629.97 | V87: 37069677.73 | W87: 37069677.73 | X87: 37069677.73 | Y87: 37069677.73 | Z87: 37069677.73 | AA87: 37069677.73
B88: Multiplier | E88: =(1-E13/E15)/(E12-E13) -> 14.66666667 | H88: =$E$88*H87*H5 -> 0 | I88: =$E$88*I87*I5 -> 0 | J88: 0 | K88: 0 | L88: 0 | M88: 0 | N88: 0 | O88: 0 | P88: 0 | Q88: 0 | R88: 0 | S88: 0 | T88: 482128698 | U88: 0 | V88: 0 | W88: 0 | X88: 0 | Y88: 0 | Z88: 0 | AA88: 0 | XFD88: =XFC88+1% -> 0.01
B89: PV of Terminal Value | E89: =NPV(F89,H88:AA88)*(1+F75)^0.5 -> 164184350.3 | F89: =F75 -> 0.09
B90: Add: NPV of Explicit Cash Flow | E90: =E66 -> 102109072.3
B91: Total Enterprise Value | E91: =E89+E90 -> 266293422.6
B93: Less: Net Debt | E93: =E79 -> 2362045.555
B94: Equity Value | E94: =E80 -> 627919260.1
B95: Shares | E95: 474000
B96: Equity Value/Share | E96: 1324.724177
I98: Wacc
G99: =E72 -> 1638.193549 | H99: 0.05 | I99: =H99+1% -> 0.06 | J99: =I99+1% -> 0.07 | K99: =J99+1% -> 0.08
G100: 0.03
F101: G | G101: 0.04
G102: 0.05
G103: 0.06
H116: =E72 -> 1638.193549 | I116: =E82 -> 1324.724177
G117: 0.05 | H117: 11888.34779 | I117: 2059.797515
G118: 0.06 | H118: 5391.725527 | I118: 1840.640032
G119: 0.07 | H119: 3269.946338 | I119: 1647.156903
G120: 0.08 | H120: 2237.637824 | I120: 1476.117636
G121: 0.09 | H121: 1638.193549 | I121: 1324.724177

Sheet Sensitivity and Presentation
A1: Contents | B1: Sensitivity and Presentation | D1: Scenario Number | F1: 1
H2: ='Amazon DCF'!E82 -> 1324.724177
D4: WACC
D5: Terminal Growth
D6: Explicit Period
D7: Terminal EV/EBITDA
V8: Value Driver
E9: 1 | G9: 2 | I9: 3 | K9: 4 | M9: 5 | O9: 6 | P9: 7 | Q9: 8 | R9: 8 | T9: DCF Value Growth | U9: EV/EBITDA
E10: Sales Growth | G10: COGS Percent | I10: R&D Growth | K10: SG&A to Sales | M10: Cap Exp to Sales | O10: A/R to Sales | P10: Inventory to COGS | Q10: A/P to Expense | R10: Other Liabilities to Exp | T10: ='Amazon DCF'!I6 -> 1638.193549 | U10: ='Amazon DCF'!I7 -> 1324.724177
D11: Base Case | E11: 1 | F11: =INDEX('Amazon Model'!$C$203:$C$206,'Sensitivity and Presentation'!E11) -> Base Case | G11: 1 | H11: =INDEX('Amazon Model'!$C$211:$C$214,'Sensitivity and Presentation'!G11) -> Base Case | I11: 1 | J11: =INDEX('Amazon Model'!$C$219:$C$222,'Sensitivity and Presentation'!I11) -> Base Case | K11: 1 | L11: =INDEX('Amazon Model'!$C$227:$C$230,'Sensitivity and Presentation'!K11) -> Base Case | M11: 1 | N11: =INDEX('Amazon Model'!$C$235:$C$238,'Sensitivity and Presentation'!M11) -> Base Case | P11: 0.15 | Q11: 0.18 | R11: 0.07 | S11: 1 | T11: 1638.193549 | U11: 1324.724177
D12: Best Case | E12: 2 | F12: =INDEX('Amazon Model'!$C$203:$C$206,'Sensitivity and Presentation'!E12) -> Case 1 - Higher Growth | G12: 2 | H12: =INDEX('Amazon Model'!$C$211:$C$214,'Sensitivity and Presentation'!G12) -> Case 2 - Lower Cost/High Price | I12: 2 | J12: =INDEX('Amazon Model'!$C$219:$C$222,'Sensitivity and Presentation'!I12) -> Case 2 - Lower Spending | K12: 2 | L12: =INDEX('Amazon Model'!$C$227:$C$230,'Sensitivity and Presentation'!K12) -> Case 2 - Lower Cost | M12: 2 | N12: =INDEX('Amazon Model'!$C$235:$C$238,'Sensitivity and Presentation'!M12) -> Case 2 - Lower Cap Exp | S12: 2 | T12: 4374.510276 | U12: 3391.084963
D13: Worst Case | E13: 3 | F13: =INDEX('Amazon Model'!$C$203:$C$206,'Sensitivity and Presentation'!E13) -> Case 2 - Lower Growth | G13: 3 | H13: =INDEX('Amazon Model'!$C$211:$C$214,'Sensitivity and Presentation'!G13) -> Case 3 - Higher Cost/Lower Price | I13: 3 | J13: =INDEX('Amazon Model'!$C$219:$C$222,'Sensitivity and Presentation'!I13) -> Case 3 - Higher Spending | K13: 3 | L13: =INDEX('Amazon Model'!$C$227:$C$230,'Sensitivity and Presentation'!K13) -> Case 3 - Higher Cost | M13: 3 | N13: =INDEX('Amazon Model'!$C$235:$C$238,'Sensitivity and Presentation'!M13) -> Case 3 - Lower Cap Exp | S13: 3 | T13: 328.5914062 | U13: 282.129789
B14: Best Case | C14: 1 | D14: =E10&" "&B14 -> Sales Growth Best Case | E14: =IF(E$9=$C14,E$12,E$11) -> 2 | F14: =INDEX('Amazon Model'!$C$203:$C$206,'Sensitivity and Presentation'!E14) -> Case 1 - Higher Growth | G14: =IF(G$9=$C14,G$12,G$11) -> 1 | H14: =INDEX('Amazon Model'!$C$211:$C$214,'Sensitivity and Presentation'!G14) -> Base Case | I14: =IF(I$9=$C14,I$12,I$11) -> 1 | J14: =INDEX('Amazon Model'!$C$219:$C$222,'Sensitivity and Presentation'!I14) -> Base Case | K14: =IF(K$9=$C14,K$12,K$11) -> 1 | L14: =INDEX('Amazon Model'!$C$227:$C$230,'Sensitivity and Presentation'!K14) -> Base Case | M14: =IF(M$9=$C14,M$12,M$11) -> 1 | N14: =INDEX('Amazon Model'!$C$235:$C$238,'Sensitivity and Presentation'!M14) -> Base Case | S14: 4 | T14: 2113.68934 | U14: 1696.009493
C15: 2 | D15: =G10&" "&B14 -> COGS Percent Best Case | E15: =IF(E$9=$C15,E$12,E$11) -> 1 | F15: =INDEX('Amazon Model'!$C$203:$C$206,'Sensitivity and Presentation'!E15) -> Base Case | G15: 2 | H15: =INDEX('Amazon Model'!$C$211:$C$214,'Sensitivity and Presentation'!G15) -> Case 2 - Lower Cost/High Price | I15: 1 | J15: =INDEX('Amazon Model'!$C$219:$C$222,'Sensitivity and Presentation'!I15) -> Base Case | K15: 1 | L15: =INDEX('Amazon Model'!$C$227:$C$230,'Sensitivity and Presentation'!K15) -> Base Case | M15: 1 | N15: =INDEX('Amazon Model'!$C$235:$C$238,'Sensitivity and Presentation'!M15) -> Base Case | S15: 5 | T15: 2530.672742 | U15: 2003.221781
C16: 3 | D16: =I10&" "&B14 -> R&D Growth Best Case | E16: 1 | F16: =INDEX('Amazon Model'!$C$203:$C$206,'Sensitivity and Presentation'!E16) -> Base Case | G16: 1 | H16: =INDEX('Amazon Model'!$C$211:$C$214,'Sensitivity and Presentation'!G16) -> Base Case | I16: 2 | J16: =INDEX('Amazon Model'!$C$219:$C$222,'Sensitivity and Presentation'!I16) -> Case 2 - Lower Spending | K16: 1 | L16: =INDEX('Amazon Model'!$C$227:$C$230,'Sensitivity and Presentation'!K16) -> Base Case | M16: 1 | N16: =INDEX('Amazon Model'!$C$235:$C$238,'Sensitivity and Presentation'!M16) -> Base Case | S16: 6 | T16: 1799.492536 | U16: 1451.616258
C17: 4 | D17: =K10&" "&B14 -> SG&A to Sales Best Case | E17: 1 | F17: =INDEX('Amazon Model'!$C$203:$C$206,'Sensitivity and Presentation'!E17) -> Base Case | G17: 1 | H17: =INDEX('Amazon Model'!$C$211:$C$214,'Sensitivity and Presentation'!G17) -> Base Case | I17: 1 | J17: =INDEX('Amazon Model'!$C$219:$C$222,'Sensitivity and Presentation'!I17) -> Base Case | K17: 2 | L17: =INDEX('Amazon Model'!$C$227:$C$230,'Sensitivity and Presentation'!K17) -> Case 2 - Lower Cost | M17: 1 | N17: =INDEX('Amazon Model'!$C$235:$C$238,'Sensitivity and Presentation'!M17) -> Base Case | S17: 7 | T17: 2122.090509 | U17: 1705.400419
C18: 5 | D18: =M10&" "&B14 -> Cap Exp to Sales Best Case | E18: 1 | F18: =INDEX('Amazon Model'!$C$203:$C$206,'Sensitivity and Presentation'!E18) -> Base Case | G18: 1 | H18: =INDEX('Amazon Model'!$C$211:$C$214,'Sensitivity and Presentation'!G18) -> Base Case | I18: 1 | J18: =INDEX('Amazon Model'!$C$219:$C$222,'Sensitivity and Presentation'!I18) -> Base Case | K18: 1 | L18: =INDEX('Amazon Model'!$C$227:$C$230,'Sensitivity and Presentation'!K18) -> Base Case | M18: 2 | N18: =INDEX('Amazon Model'!$C$235:$C$238,'Sensitivity and Presentation'!M18) -> Case 2 - Lower Cap Exp | S18: 8 | T18: 1898.031825 | U18: 1496.278974
C19: 6 | D19: =O10&" "&B14 -> A/R to Sales Best Case | E19: 1 | F19: =INDEX('Amazon Model'!$C$203:$C$206,'Sensitivity and Presentation'!E19) -> Base Case | G19: 1 | H19: =INDEX('Amazon Model'!$C$211:$C$214,'Sensitivity and Presentation'!G19) -> Base Case | I19: 1 | J19: =INDEX('Amazon Model'!$C$219:$C$222,'Sensitivity and Presentation'!I19) -> Base Case | K19: 1 | L19: =INDEX('Amazon Model'!$C$227:$C$230,'Sensitivity and Presentation'!K19) -> Base Case | M19: 1 | N19: =INDEX('Amazon Model'!$C$235:$C$238,'Sensitivity and Presentation'!M19) -> Base Case | S19: 9 | T19: 1638.193549 | U19: 1324.724177
C20: 7 | D20: =P10&" "&B14 -> Inventory to COGS Best Case | E20: 1 | F20: =INDEX('Amazon Model'!$C$203:$C$206,'Sensitivity and Presentation'!E20) -> Base Case | G20: 1 | H20: =INDEX('Amazon Model'!$C$211:$C$214,'Sensitivity and Presentation'!G20) -> Base Case | I20: 1 | J20: =INDEX('Amazon Model'!$C$219:$C$222,'Sensitivity and Presentation'!I20) -> Base Case | K20: 1 | L20: =INDEX('Amazon Model'!$C$227:$C$230,'Sensitivity and Presentation'!K20) -> Base Case | M20: 1 | N20: =INDEX('Amazon Model'!$C$235:$C$238,'Sensitivity and Presentation'!M20) -> Base Case | S20: 10 | T20: 1638.193549 | U20: 1324.724177
C21: 8 | D21: =Q10&" "&B14 -> A/P to Expense Best Case | E21: 1 | F21: =INDEX('Amazon Model'!$C$203:$C$206,'Sensitivity and Presentation'!E21) -> Base Case | G21: 1 | H21: =INDEX('Amazon Model'!$C$211:$C$214,'Sensitivity and Presentation'!G21) -> Base Case | I21: 1 | J21: =INDEX('Amazon Model'!$C$219:$C$222,'Sensitivity and Presentation'!I21) -> Base Case | K21: 1 | L21: =INDEX('Amazon Model'!$C$227:$C$230,'Sensitivity and Presentation'!K21) -> Base Case | M21: 1 | N21: =INDEX('Amazon Model'!$C$235:$C$238,'Sensitivity and Presentation'!M21) -> Base Case | S21: 11 | T21: 1638.193549 | U21: 1324.724177
B22: Worst Case | C22: 1 | D22: =E10&" "&B22 -> Sales Growth Worst Case | E22: =IF(E$9=$C22,E$13,E$11) -> 3 | F22: =INDEX('Amazon Model'!$C$203:$C$206,'Sensitivity and Presentation'!E22) -> Case 2 - Lower Growth | G22: =IF(G$9=$C22,G$13,G$11) -> 1 | H22: =INDEX('Amazon Model'!$C$211:$C$214,'Sensitivity and Presentation'!G22) -> Base Case | I22: =IF(I$9=$C22,I$13,I$11) -> 1 | J22: =INDEX('Amazon Model'!$C$219:$C$222,'Sensitivity and Presentation'!I22) -> Base Case | K22: =IF(K$9=$C22,K$13,K$11) -> 1 | L22: =INDEX('Amazon Model'!$C$227:$C$230,'Sensitivity and Presentation'!K22) -> Base Case | M22: =IF(M$9=$C22,M$13,M$11) -> 1 | N22: =INDEX('Amazon Model'!$C$235:$C$238,'Sensitivity and Presentation'!M22) -> Base Case | S22: 12 | T22: 884.1682839 | U22: 722.990713
C23: 2 | D23: =G10&B22 -> COGS Percent Worst Case | E23: =IF(E$9=$C23,E$13,E$11) -> 1 | F23: =INDEX('Amazon Model'!$C$203:$C$206,'Sensitivity and Presentation'!E23) -> Base Case | G23: 3 | H23: =INDEX('Amazon Model'!$C$211:$C$214,'Sensitivity and Presentation'!G23) -> Case 3 - Higher Cost/Lower Price | I23: 1 | J23: =INDEX('Amazon Model'!$C$219:$C$222,'Sensitivity and Presentation'!I23) -> Base Case | K23: 1 | L23: =INDEX('Amazon Model'!$C$227:$C$230,'Sensitivity and Presentation'!K23) -> Base Case | M23: 1 | N23: =INDEX('Amazon Model'!$C$235:$C$238,'Sensitivity and Presentation'!M23) -> Base Case | S23: 13 | T23: 1168.861107 | U23: 962.38253
C24: 3 | D24: =I10&B22 -> R&D Growth Worst Case | E24: 1 | F24: =INDEX('Amazon Model'!$C$203:$C$206,'Sensitivity and Presentation'!E24) -> Base Case | G24: 1 | H24: =INDEX('Amazon Model'!$C$211:$C$214,'Sensitivity and Presentation'!G24) -> Base Case | I24: 3 | J24: =INDEX('Amazon Model'!$C$219:$C$222,'Sensitivity and Presentation'!I24) -> Case 3 - Higher Spending | K24: 1 | L24: =INDEX('Amazon Model'!$C$227:$C$230,'Sensitivity and Presentation'!K24) -> Base Case | M24: 1 | N24: =INDEX('Amazon Model'!$C$235:$C$238,'Sensitivity and Presentation'!M24) -> Base Case | S24: 14 | T24: 1460.565561 | U24: 1181.503095
C25: 4 | D25: =K10&B22 -> SG&A to Sales Worst Case | E25: 1 | F25: =INDEX('Amazon Model'!$C$203:$C$206,'Sensitivity and Presentation'!E25) -> Base Case | G25: 1 | H25: =INDEX('Amazon Model'!$C$211:$C$214,'Sensitivity and Presentation'!G25) -> Base Case | I25: 1 | J25: =INDEX('Amazon Model'!$C$219:$C$222,'Sensitivity and Presentation'!I25) -> Base Case | K25: 3 | L25: =INDEX('Amazon Model'!$C$227:$C$230,'Sensitivity and Presentation'!K25) -> Case 3 - Higher Cost | M25: 1 | N25: =INDEX('Amazon Model'!$C$235:$C$238,'Sensitivity and Presentation'!M25) -> Base Case | S25: 15 | T25: 1401.084039 | U25: 1138.192819
C26: 5 | D26: =M10&B22 -> Cap Exp to Sales Worst Case | E26: 1 | F26: =INDEX('Amazon Model'!$C$203:$C$206,'Sensitivity and Presentation'!E26) -> Base Case | G26: 1 | H26: =INDEX('Amazon Model'!$C$211:$C$214,'Sensitivity and Presentation'!G26) -> Base Case | I26: 1 | J26: =INDEX('Amazon Model'!$C$219:$C$222,'Sensitivity and Presentation'!I26) -> Base Case | K26: 1 | L26: =INDEX('Amazon Model'!$C$227:$C$230,'Sensitivity and Presentation'!K26) -> Base Case | M26: 3 | N26: =INDEX('Amazon Model'!$C$235:$C$238,'Sensitivity and Presentation'!M26) -> Case 3 - Lower Cap Exp | S26: 16 | T26: 1557.389427 | U26: 1264.428596
C27: 6 | D27: =D19 -> A/R to Sales Best Case | E27: 1 | F27: =INDEX('Amazon Model'!$C$203:$C$206,'Sensitivity and Presentation'!E27) -> Base Case | G27: 1 | H27: =INDEX('Amazon Model'!$C$211:$C$214,'Sensitivity and Presentation'!G27) -> Base Case | I27: 1 | J27: =INDEX('Amazon Model'!$C$219:$C$222,'Sensitivity and Presentation'!I27) -> Base Case | K27: 1 | L27: =INDEX('Amazon Model'!$C$227:$C$230,'Sensitivity and Presentation'!K27) -> Base Case | M27: 1 | N27: =INDEX('Amazon Model'!$C$235:$C$238,'Sensitivity and Presentation'!M27) -> Base Case | S27: 17 | T27: 1638.193549 | U27: 1324.724177
C28: 7 | D28: Inventory to COGS Best Case | E28: 1 | F28: =INDEX('Amazon Model'!$C$203:$C$206,'Sensitivity and Presentation'!E28) -> Base Case | G28: 1 | H28: =INDEX('Amazon Model'!$C$211:$C$214,'Sensitivity and Presentation'!G28) -> Base Case | I28: 1 | J28: =INDEX('Amazon Model'!$C$219:$C$222,'Sensitivity and Presentation'!I28) -> Base Case | K28: 1 | L28: =INDEX('Amazon Model'!$C$227:$C$230,'Sensitivity and Presentation'!K28) -> Base Case | M28: 1 | N28: =INDEX('Amazon Model'!$C$235:$C$238,'Sensitivity and Presentation'!M28) -> Base Case | S28: 18 | T28: 1638.193549 | U28: 1324.724177
C29: 8 | D29: A/P to Expense Best Case | E29: 1 | F29: =INDEX('Amazon Model'!$C$203:$C$206,'Sensitivity and Presentation'!E29) -> Base Case | G29: 1 | H29: =INDEX('Amazon Model'!$C$211:$C$214,'Sensitivity and Presentation'!G29) -> Base Case | I29: 1 | J29: =INDEX('Amazon Model'!$C$219:$C$222,'Sensitivity and Presentation'!I29) -> Base Case | K29: 1 | L29: =INDEX('Amazon Model'!$C$227:$C$230,'Sensitivity and Presentation'!K29) -> Base Case | M29: 1 | N29: =INDEX('Amazon Model'!$C$235:$C$238,'Sensitivity and Presentation'!M29) -> Base Case | S29: 19 | T29: 1638.193549 | U29: 1324.724177
D32: =INDEX(D11:D29,$F$1) -> Base Case | E32: =INDEX(E11:E29,$F$1) -> 1 | F32: =INDEX(F11:F29,$F$1) -> Base Case | G32: 1 | H32: Base Case | I32: =INDEX(I11:I29,$F$1) -> 1 | J32: Base Case | K32: 1 | L32: Base Case | M32: =INDEX(M11:M29,$F$1) -> 1 | N32: Base Case | O32: 0 | P32: 0.15 | Q32: 0.18 | R32: 0.07
F34: Best Vs Base | H34: Worst Versus Base
D35: Sales Growth | F35: =T14-$T$11 -> 475.495791 | H35: =T22-$U$10 -> -440.5558935
D36: COGS Percent | F36: =T15-$T$11 -> 892.479193 | H36: =T23-$U$10 -> -155.8630704
D37: R&D Growth | F37: 161.2989864 | H37: 135.8413838
D38: SG&A to Sales | F38: 483.8969592 | H38: 76.35986197
D39: Cap Exp to Sales | F39: 259.838276 | H39: 232.6652497
